{"text_format":"1","workbook":"xlsx","n_sheets":5,"sheets":["Popis donacija do 31.12.13","Popis donacija do 31.12.14.","Popis donacija do 31.12.2015.","Popis donacija do 31.12.2016.","Popis donacija do 31.12.2020"],"not_rendered":{"charts":0,"images":0,"macros":1,"external_links":2,"defined_names":42,"comments":0,"pivot_tables":0},"unopened":[],"bounds":{"document_bytes":16777216,"sheet_cells":100000,"rows_first":2000,"rows_last":500,"rows_between":2000,"halvings":0,"cell_chars":16384,"cell_head_chars":4096},"cells_cut":0,"cells_raw":0,"read":"whole","date_system":"1900"}

{"sheet":"Popis donacija do 31.12.13","index":0,"n_rows":153,"n_cols":10,"rows_kept":153,"cut":false,"hidden":false,"merged":[[152,0,152,6]]}
[]
["GRAD  KRK  - IZVJEŠTAJ O  DONACIJAMA UDRUGAMA I POLITIČKIM STRANKAMA IZ PRORAČUNA DO 31.12.2013."]
["1",2,3,4,5,6,7,8,9]
["OIB primatelja donacije","Naziv primatelja donacije /šifra PP","Naziv programa ili pojedinačne donacije","Godina","Planirano prema programu javnih potreba iz kolone 3.-ugovor","Ostvarena donacija po programu iz kolone 3.","Ostale donacije prema odluci Gradonačelnika","Donacija za knjigovodstvo udruga ","Ukupno donacija udruzi 2013"]
["13644894582","Udruga HVIDRA, otok Krk","Program za socijalno-humanitarne udruge, društva i ustanove Grada Krka",2013,25000,25000,null,null,{"$f":"F5+G5+H5","v":25000},{"$f":"SUM(E5:E39)","v":263000}]
["33480204219","Terapijska zajednica \"Savez\"","Program za socijalno-humanitarne udruge, društva i ustanove Grada Krka",2013,10000,5000,null,null,{"$f":"F6+G6+H6","v":5000}]
["04341489477","Udruga antifašističkih boraca Otoka Krka","Program za socijalno-humanitarne udruge, društva i ustanove Grada Krka",2013,15000,15000,null,6062.71,21062.71]
["04341489477","Udruga antifašističkih boraca Grada Krka","Program za socijalno-humanitarne udruge, društva i ustanove Grada Krka",2013,10000,10000,null,null,10000]
["04341489477","Udruga antifašističkih boraca Šotovento","Program za socijalno-humanitarne udruge, društva i ustanove Grada Krka",2013,10000,10000,null,null,10000]
["87108816444","Udruga umirovljenika Grada Krka","Program za socijalno-humanitarne udruge, društva i ustanove Grada Krka",2013,30000,30000,14500,3497.71,47997.71]
["67753818672","Udruga umirovljenika Šotovento","Program za socijalno-humanitarne udruge, društva i ustanove Grada Krka",2013,30000,30000,null,2720.45,32720.45]
["17299379476","Udruga gluhih i nagluhih","Program za socijalno-humanitarne udruge, društva i ustanove Grada Krka",2013,2000,2000,null,null,2000]
["80713734687","Udruga slijepih PGŽ Rijeka","Program za socijalno-humanitarne udruge, društva i ustanove Grada Krka",2013,2000,2000,null,null,2000]
["71954510830","Udruga osoba s mišićnom distrofijom PGŽ","Program za socijalno-humanitarne udruge, društva i ustanove Grada Krka",2013,2000,1000,null,null,1000]
["91656532246","Društvo multiple skleroze","Program za socijalno-humanitarne udruge, društva i ustanove Grada Krka",2013,null,null,1000,null,1000]
["14235138093","Udruga roditelja poginulih branitelja","Program za socijalno-humanitarne udruge, društva i ustanove Grada Krka",2013,null,null,1000,null,1000]
["07212991549","Hrvatsko društvo političkih zatvorenika","Program za socijalno-humanitarne udruge, društva i ustanove Grada Krka",2013,2000,2000,4000,null,6000]
["49396492543","Udruga za mentalnu retardaciju","Program za socijalno-humanitarne udruge, društva i ustanove Grada Krka",2013,null,null,null,null,0]
["470252MB","Caritas Krk","Program za socijalno-humanitarne udruge, društva i ustanove Grada Krka",2013,10000,10000,1000,null,11000]
["73790034362","Kvarnerski vez","Program za socijalno-humanitarne udruge, društva i ustanove Grada Krka",2013,3000,1500,null,null,1500]
["76455622311","Udruga invalida kvarnerskih otoka","Program za socijalno-humanitarne udruge, društva i ustanove Grada Krka",2013,10000,10000,null,null,10000]
["2131200MB","Udruga gradova maslina i ekstra djev masl. ulja","Program za socijalno-humanitarne udruge, društva i ustanove Grada Krka",2013,null,null,null,null,0]
["59764000772","Gorska služba spašavanja","Program za socijalno-humanitarne udruge, društva i ustanove Grada Krka",2013,20000,24500,null,null,24500]
["45092136734","Povijesno društvo Otoka Krka","Program za socijalno-humanitarne udruge, društva i ustanove Grada Krka",2013,null,null,5835,3497.71,9332.7099999999991]
["61916000339","Udruga za zaštitu životinja \"Felix\"","Program za socijalno-humanitarne udruge, društva i ustanove Grada Krka",2013,4000,4000,null,null,4000]
["68386873672","Udruga \"Obitelj za mlade\"","Program za socijalno-humanitarne udruge, društva i ustanove Grada Krka",2013,4000,4000,null,null,4000]
["03376156304","Udruga \"Klub zdravlja Otoka Krka\"","Program za socijalno-humanitarne udruge, društva i ustanove Grada Krka",2013,null,null,null,null,0]
["08002590MB","Udruga veterana Domovinskog rata","Program za socijalno-humanitarne udruge, društva i ustanove Grada Krka",2013,15000,15000,5000,6062.71,26062.71]
["26889141768","Klub liječenih ovisnika otoka Krka \"Gromača\"","Program za socijalno-humanitarne udruge, društva i ustanove Grada Krka",2013,20000,21569,16000,null,37569]
["45613787772","Nastavni zavod za javno zdravstvo","Program za socijalno-humanitarne udruge, društva i ustanove Grada Krka",2013,10000,7500,null,null,7500]
["60978973343","Zajednica talijana Krk","Program za socijalno-humanitarne udruge, društva i ustanove Grada Krka",2013,7000,7000,null,3362,10362]
["11268954050","Pokret za život","Program za socijalno-humanitarne udruge, društva i ustanove Grada Krka",2013,null,null,null,null,0]
["67868704289","Bošnjačka nacionalna zajednica","Program za socijalno-humanitarne udruge, društva i ustanove Grada Krka",2013,3000,3500,null,null,3500]
["95951192179","Udruga za terapijsko jahanje \"Moj prijatelj\" Njivice","Program za socijalno-humanitarne udruge, društva i ustanove Grada Krka",2013,3000,3000,null,null,3000]
["90177203233","Udruga dijalizirnih i trasplantiranih bolesnika PGŽ","Program za socijalno-humanitarne udruge, društva i ustanove Grada Krka",2013,2000,2000,null,null,2000]
["10640645408","Udruga civilnih invalida rata PGŽ, Rijeka/01000639006","Program za socijalno-humanitarne udruge, društva i ustanove Grada Krka",2013,1000,1000,null,null,1000]
["86184894442","Udruga za promicanje zdravog načina života \"LIVE WITH NATURE\" Skrbčići","Program za socijalno-humanitarne udruge, društva i ustanove Grada Krka",2013,null,null,null,2720.45,2720.45]
["08002314RB","Udruga \"Grad nag Gori\" Batomalj","Program za socijalno-humanitarne udruge, društva i ustanove Grada Krka",2013,10000,10000,null,null,10000]
["48646835982","Udruga osoba opreriranih dojki \"Nada\"","Program za socijalno-humanitarne udruge, društva i ustanove Grada Krka",2013,3000,1500,1000,null,2500]
["05478483564","Jedriličarski klub \"Plav\"","Program sporta",2013,80000,80000,null,3886.36,83886.36,{"$f":"SUM(E40:E64)","v":992000}]
["36756573211","Judo klub Krk","Program sporta",2013,65000,65000,1500,3886.36,70386.36]
["03533054678","Nogometni klub Krk","Program sporta",2013,390000,390000,17000,2502,409502]
["86232456623","Boćarski klub Krk","Program sporta",2013,45000,45000,2000,2720.45,49720.45]
["45131977269","Košarkaški klub Krk","Program sporta",2013,160000,150000,null,5013.3999999999996,155013.4]
["08000507MB","Boćarski klub Brzac","Program sporta",2013,45000,45000,null,3886.36,48886.36]
["96996266947","Atletski klub","Program sporta",2013,35000,35000,13500,3362,51862]
["53091120284","Odbojkaški klub Krk","Program sporta",2013,null,null,null,1943.18,1943.18]
["76916108498","Malonogometni klub krk","Program sporta",2013,12000,12000,null,3792,15792]
["93867450122","Ženski rukometni klub Krk","Program sporta",2013,null,null,null,1943.18,1943.18]
["26187625353","ŠRD \"Glavoč\" Linardići","Program sporta",2013,null,null,null,3362,3362]
["91785441723","Klub za športski ribolov \"Sv. Fuska\" Linardići","Program sporta",2013,5000,5000,null,2720.45,7720.45]
["98470469935","Š.R.D. \"Čavlena\", Poljica","Program sporta",2013,5000,5000,null,2720.45,7720.45]
["3010199207","Š.R.D. Lovrata","Program sporta",2013,40000,40000,88000,3886.36,131886.35999999999]
["21584915136","Š.R.D. \"Poteljan\" - Brzac","Program sporta",2013,5000,5000,null,2720.45,7720.45]
["09329462921","K.P.A. \"Bios I\"","Program sporta",2013,5000,5000,null,2720.45,7720.45]
["34791402277","U.Š.R. \"Pepice\", Krk","Program sporta",2013,null,null,null,2720.45,2720.45]
["30112731589","Streljački klub \"Bodulka\", Krk","Program sporta",2013,15000,15000,null,null,15000]
["22800276467","Karate klub \"Krk\", Krk","Program sporta",2013,20000,20000,4000,3886.36,27886.36]
["61154651100","Body building klub, Krk","Program sporta",2013,null,null,null,3886.36,3886.36]
[6132389853,"Golf klub, Krk","Program sporta",2013,null,null,null,1943.18,1943.18]
["62150220652","Streličarski klub Maura Kal, Krk","Program sporta",2013,35000,35000,null,2720.45,37720.449999999997]
["78472729020","Brdsko biciklistički klub, Krk","Program sporta",2013,10000,10000,null,2720.45,12720.45]
["12308261479","Wakeboard klub , Krk","Program sporta",2013,15000,15000,null,null,15000]
["51467769782","STK Malinska-Dubašnica, Malinska","Program sporta",2013,5000,5000,2000,null,7000]
[43320920196,"D.P.Z. zbor \"Mići boduli\"","Program javnih potreba u kulturi",2013,70000,70000,null,3497.71,73497.710000000006,{"$f":"SUM(E65:E79)","v":272000}]
["75741049188","Gradska limena glazba Krk","Program javnih potreba u kulturi",2013,56000,56000,8000,3497.71,67497.710000000006]
["50403072234","Gradski pjevački zbor - Krk","Program javnih potreba u kulturi",2013,25000,12500,null,2720.45,15220.45]
["46553375003","Katedra čakavskog sabora - Kornić","Program javnih potreba u kulturi",2013,22000,22000,3000,1943.18,26943.18]
["02948679852","K.U.D. Vrh","Program javnih potreba u kulturi",2013,20000,20000,1700,2720.45,24420.45]
["12405095116","Kulturno društvo Kornić","Program javnih potreba u kulturi",2013,20000,20000,null,2720.45,{"$f":"F70+G70+H70","v":22720.45}]
["17069296058","Folklorno društvo Poljica","Program javnih potreba u kulturi",2013,15000,15000,null,2720.45,17720.45]
["77259416962","Plesna udruga Krk - Osjeti ritam Pinezići","Program javnih potreba u kulturi",2013,10000,10000,null,3362,13362]
["86856424924","Multimedijalna udruga Krčka beseda Krk","Program javnih potreba u kulturi",2013,5000,5000,2000,null,7000]
["59820641676","Plesna udruga Krk - ritmika","Program javnih potreba u kulturi",2013,null,null,null,null,0]
["49825618301","Pontes - Krk","Program javnih potreba u kulturi",2013,null,null,null,null,0]
["1120743MB","Glazbena škola Mirković - Lovran","Program javnih potreba u kulturi",2013,2000,null,null,null,0]
["66601934965","Plesna skupina Monfrina - Krk","Program javnih potreba u kulturi",2013,13000,13000,null,3362,16362]
["01051197257","D.P.S. Povero Keko - Krk","Program javnih potreba u kulturi",2013,8000,8000,3000,1943.18,12943.18]
["04345582762","Udruga sopaca otoka Krka","Program javnih potreba u kulturi",2013,6000,6000,null,3497.71,9497.7099999999991]
["12016859209","Udruga Knezovi krčki Frankopan","Program javnih potreba u kulturi",2013,15000,15000,null,3362,18362]
["77635713545","Otvoreno kazalište Omišalj","Program javnih potreba u kulturi",2013,4000,4000,null,null,4000]
["21349394661","Demo udruga bendova Grada Krka","Program kulture",2013,10000,12500,10040,null,22540]
["91438028726","Udruga Zlatni otok pjeva, Krk","Program kulture",2013,15000,15000,5000,3886.36,23886.36]
["43969737679","KUL-kulturno umjetnički laborator","Program kulture",2013,null,null,null,3362,3362]
["23708870261","Šahovski klub - Krk","Program javnih potreba u tehničkoj kulturi",2013,47000,47000,3000,3497.71,53497.71]
["60024777398","Informatički klub - Krk KIOK  905","Program javnih potreba u tehničkoj kulturi",2013,25000,18750,3000,3886.36,25636.36]
["92972369942","Planinarsko društvo Obzova Njivice","Program javnih potreba u tehničkoj kulturi",2013,10000,10000,null,null,10000]
["92942299310","Veslački klub \"Glagoljaš\" - Omišalj","Program javnih potreba u tehničkoj kulturi",2013,5000,5000,null,null,5000]
["40771840841","Streljački klub \"Dub\", Malinska","Program javnih potreba u tehničkoj kulturi",2013,5000,2500,null,null,2500]
["72556929505","Foto klub Krk","Program javnih potreba u tehničkoj kulturi",2013,5000,5000,3000,3362,11362]
["57026135581","Filatelističkodruštvo Krk","Program javnih potreba u tehničkoj kulturi",2013,10000,10000,null,null,10000]
["17305749299","Auto klub Krk","Program javnih potreba u tehničkoj kulturi",2013,30000,30000,21750,10415.450000000001,62165.45]
["91063173829","Moto klub Griffons Krk","Program javnih potreba u tehničkoj kulturi",2013,3000,3000,null,2720.45,5720.45]
["55275281568","Građanska inicijativa otoka Krka","Program građanskih inicijativa otoka Krka",2013,null,null,null,3362,3362]
["67421370315","Lovačko društvo \"Kamenjarka\"","Program javnih potreba u poljoprivredi",2013,10000,10000,15687.5,null,25687.5]
["89342153826","Lovačko društvo \"Šljuka\" - Krk","Program javnih potreba u poljoprivredi",2013,10000,10000,null,null,10000]
["46632693146","Udruga ovčara \"Ponikva\" - Krk","Program javnih potreba u poljoprivredi",2013,15000,15000,2000,2720.45,19720.45]
["50206656419","Udruga maslinara \"Drobnica\" - Krk","Program javnih potreba u poljoprivredi",2013,100000,87038.8,4131.42,3362,94532.22]
["82907571905","Udruga vinara otoka Krka \"Bukaleta\"","Program javnih potreba u poljoprivredi",2013,10000,10000,1000,3362,14362]
["76318722399","Udruga pčelara \"Kadulja\" otoka Krka","Program javnih potreba u poljoprivredi",2013,5000,5000,null,3886.36,8886.36]
["72240714022","Društvo krčana i prijatelja otoka Krka, Zagreb","Građanske inicijative",2013,null,null,null,null,0]
["04150008463","Hrvatska demokratska zajednica -HDZ","Odluka o sredstvima za političke stranke Grada Krka",2013,14000,14000,null,null,14000]
["82435880635","Hrvatska narodna stranka -HNS","Odluka o sredstvima za političke stranke Grada Krka",2013,14000,14000,null,null,14000]
["02010978731","Socijal -demokratska partija SDP","Odluka o sredstvima za političke stranke Grada Krka",2013,17850,17850,null,null,17850]
["08692235081","Hrvatska socijalnoliberalna stranka HSLS","Odluka o sredstvima za političke stranke Grada Krka",2013,7000,7000,null,null,7000]
["55966591250","Volarić Svjetlana nezavisna lista","Odluka o sredstvima za političke stranke Grada Krka",2013,3500,3500,null,null,3500]
["56890881647","Hrvatska seljačka stranka - HSS","Odluka o sredstvima za političke stranke Grada Krka",2013,3500,3500,null,null,3500]
[null,"Zelena stranka","Odluka o sredstvima za političke stranke Grada Krka",2013,3850,3850,null,null,3850]
["97439500228","Nezavisna lista David Mrakovčić","Odluka o sredstvima za političke stranke Grada Krka",2013,7000,7000,null,null,7000]
["41495097026","Primorsko goranski savez - PGS","Odluka o sredstvima za političke stranke Grada Krka",2013,35700,35700,null,null,35700]
["20565122166","Moto udruga policajaca \"Plavi vitezovi-Croatia VI\" Rijeka","Hum.akcija Toy run",2013,null,null,1500,null,1500]
[null,"Škola stvaralaštva Novigradsko proljeće","kotizacija",2013,null,null,400,null,400]
["77600514446","Lag-Bjeloglavi sup",null,2013,null,null,1500,3010,4510]
[null,"Znanstveno edukacijski centar  Višnjan","Ljetna radionica",2013,null,null,2000,null,2000]
["20792124114","Udruga rat.vet. Hrvatski domobran -ogr- Rijeka",null,2013,null,null,null,null,0]
["71693540901","Katedra Čakavsko sabora grobnišćine","Grobnička skala",2013,null,null,5000,null,5000]
["48870180472","Zajednica udruga Hvidr-a",null,2013,null,null,1000,null,1000]
[null,"Poljoprivredna zadruga Krk",null,2013,null,null,1400,3362,4762]
["19408676097","Šahovski klub - Draga","Turnir",2013,null,null,6000,null,6000]
[null,"Samostan benediktinki","Uređenje samostana",2013,null,null,50000,null,50000]
["60334254350","Područna vatrogasna zajednica otoka Krka-za DVD Krk","Sporazum o sufinanc.",2013,null,null,410000,null,410000]
["94628083920","Dobrovoljno vatrogasno društvo Krk",null,2013,null,null,null,5013.3999999999996,5013.3999999999996]
["47575424716","Forum krčke mladeži",null,2013,null,null,null,3362,3362]
["55885214724","Folklorno društvo Skrpčić -Pinezić",null,2013,null,null,null,1943.18,1943.18]
["85079860748","KUD Domaći iz vatre Krk",null,2013,null,null,null,3362,3362]
["06199677038","Motoristički klub Indians MC Croatia",null,2013,null,null,null,3362,3362]
["05610544556","H.U. Svi za jednoga jedan za sve Krk",null,2013,null,null,null,3362,3362]
[null,"Srpska nacionalna manjina ",null,2013,10000,10000,null,null,10000]
["07103881876","Centar za brdsko planinsku poljoprivredu-ustanova",null,2013,null,null,132408,null,132408]
["31501920607","Crveni križ Krk","Proračun grada za 2013- zakonska obveza",2013,120000,120000,9750,null,{"$f":"F130+G130+H130","v":129750}]
[null,"Franjevački samostan Košljun",null,2013,null,null,3000,null,3000]
[null,"Župa uznesenja B.D.Marije Omišalj","Izdav.knjige",2013,null,null,4000,null,4000]
["28645559315","Udruga invalida rada Rijeka",null,2013,null,null,1000,null,{"$f":"F133+G133+H133","v":1000}]
["12632735476","Udruga specijalne policije \"Ajkula\"","Obljetnica",2013,null,null,1000,null,1000]
[null,"Društvo \"Naša djeca\" Mali Lošinj","skuplj.otpada",2013,null,null,1000,null,1000]
[null,"Centar za rehabilitaciju \"Fortica\"","Manifestacija 3. Drž susret MAT",2013,null,null,1000,null,1000]
["10693338236","Spirit Udruga građana","Man. Uhvati film",2013,null,null,1000,null,1000]
[null,"Pašić Dino","Nagrada sportašu",2013,null,null,5000,null,5000]
[null,"Danijel Duda","Drž.šah.prvenst.",2013,null,null,1000,null,1000]
["04647134362","Udruga Livingstone","Izložba Hrv.prim.u Krku",2013,null,null,5000,null,5000]
[null,"Mrezze- udruga za kult. suradnju zemalja u regiji","\"Mala škola brodogradnje",2013,null,null,5000,null,5000]
["79266409197","Društvo za ceste Via-Vita","monograf.Ceste Pgž",2013,null,null,1000,null,1000]
["07765590117","Košarkaški savez PGŽ","koš.kamp",2013,null,null,1000,null,1000]
["11546411511","Udruga Ti si OK","pokloni učen.",2013,null,null,2040,null,2040]
["08518185845","OTK Willys Bistra (za MK Bistra)","nastup D.Špoljara",2013,null,null,2250,null,2250]
["90806197014","Klub za športski ribolov na moru \"Big OM\" Omišalj","Big game fishing",2013,null,null,2000,null,2000]
["08001469","Karnevalska udruga \"Povero Keko\"",null,2013,null,null,null,3362,3362]
["83149865195","Lovačko društvo Orebica","Spor.o sufin. Adaptacije",2013,null,null,17000]
["34876825002","Zrakoplovni klub otoka Krka",null,2013,null,null,2000,null,2000]
[null,null,null,null,{"$f":"SUM(E5:E149)","v":2097400},{"$f":"SUM(F5:F149)","v":2048757.8},939891.91999999993,210175.44999999995,{"$f":"SUM(I5:I149)","v":3181825.1699999995}]
[]
[]
["*Ukupno knjiženo na kontima 381 tekuće donacije  3.310.899,39 kn i 382  kapitalne donacije 601.581,25 kn od čega je   3.181.825,12 kn plaćeno neprofitnim udrugama a 730.655,47 dobavljačima prema izdanom računu, ustanovama i sl. prema odluci Gradonačelnika, sporazumu, ugovoru (nije na popisu)"]

{"sheet":"Popis donacija do 31.12.14.","index":1,"n_rows":136,"n_cols":8,"rows_kept":136,"cut":false,"hidden":false,"merged":[[121,0,121,6]]}
["GRAD  KRK  - IZVJEŠTAJ O  DONACIJAMA UDRUGAMA I POLITIČKIM STRANKAMA IZ PRORAČUNA DO 31.12.2014."]
[1,2,3,4,5,6,7,9]
["OIB primatelja donacije","Naziv primatelja donacije /šifra PP","Naziv programa ili pojedinačne donacije","Godina","Planirano prema programu javnih potreba iz kolone 3.-ugovor","Ostvarena donacija po programu iz kolone 3.","Ostale donacije prema odluci Gradonačelnika","Ukupno donacija udruzi 2014"]
["13644894582","Udruga HVIDRA, otok Krk","Program za socijalno-humanitarne udruge, društva i ustanove Grada Krka",2014,25000,25000,null,{"$f":"SUM(F4:G4)","v":25000}]
["33480204219","Terapijska zajednica \"Savez\"","Program za socijalno-humanitarne udruge, društva i ustanove Grada Krka",2014,10000,10000,null,{"$f":"SUM(F5:G5)","v":10000}]
["04341489477","Udruga antifašističkih boraca Otoka Krka","Program za socijalno-humanitarne udruge, društva i ustanove Grada Krka",2014,15000,15000,7338.68,22338.68]
["04341489477","Udruga antifašističkih boraca Grada Krka","Program za socijalno-humanitarne udruge, društva i ustanove Grada Krka",2014,10000,10000,null,10000]
["04341489477","Udruga antifašističkih boraca Šotovento","Program za socijalno-humanitarne udruge, društva i ustanove Grada Krka",2014,10000,10000,null,10000]
["87108816444","Udruga umirovljenika Grada Krka","Program za socijalno-humanitarne udruge, društva i ustanove Grada Krka",2014,30000,30000,18261.02,48261.020000000004]
["67753818672","Udruga umirovljenika Šotovento","Program za socijalno-humanitarne udruge, društva i ustanove Grada Krka",2014,30000,27000,16414.490000000002,43414.490000000005]
["17299379476","Udruga gluhih i nagluhih","Program za socijalno-humanitarne udruge, društva i ustanove Grada Krka",2014,2000,null,null,0]
["80713734687","Udruga slijepih PGŽ Rijeka","Program za socijalno-humanitarne udruge, društva i ustanove Grada Krka",2014,2000,2000,null,2000]
["71954510830","Udruga osoba s mišićnom distrofijom PGŽ","Program za socijalno-humanitarne udruge, društva i ustanove Grada Krka",2014,2000,2000,null,2000]
["91656532246","Društvo multiple skleroze","Program za socijalno-humanitarne udruge, društva i ustanove Grada Krka",2014,2000,2000,null,2000]
["07212991549","Hrvatsko društvo političkih zatvorenika","Program za socijalno-humanitarne udruge, društva i ustanove Grada Krka",2014,2000,null,null,0]
["470252MB","Caritas Krk","Program za socijalno-humanitarne udruge, društva i ustanove Grada Krka",2014,10000,null,null,0]
["73790034362","Kvarnerski vez","Program za socijalno-humanitarne udruge, društva i ustanove Grada Krka",2014,3000,null,null,0]
["76455622311","Udruga invalida kvarnerskih otoka","Program za socijalno-humanitarne udruge, društva i ustanove Grada Krka",2014,10000,10000,null,10000]
["59764000772","Gorska služba spašavanja","Program za socijalno-humanitarne udruge, društva i ustanove Grada Krka",2014,20000,20000,null,20000]
["45092136734","Povijesno društvo Otoka Krka","Program za socijalno-humanitarne udruge, društva i ustanove Grada Krka",2014,5000,5000,null,5000]
["61916000339","Udruga za zaštitu životinja \"Felix\"","Program za socijalno-humanitarne udruge, društva i ustanove Grada Krka",2014,4000,3000,null,3000]
["68386873672","Udruga \"Obitelj za mlade\"","Program za socijalno-humanitarne udruge, društva i ustanove Grada Krka",2014,4000,4000,null,4000]
["08002590MB","Udruga veterana Domovinskog rata","Program za socijalno-humanitarne udruge, društva i ustanove Grada Krka",2014,15000,15000,5000,20000]
["26889141768","Klub liječenih ovisnika otoka Krka \"Gromača\"","Program za socijalno-humanitarne udruge, društva i ustanove Grada Krka",2014,20000,20000,null,20000]
["45613787772","Nastavni zavod za javno zdravstvo","Program za socijalno-humanitarne udruge, društva i ustanove Grada Krka",2014,10000,10000,null,10000]
["60978973343","Zajednica talijana Krk","Program za socijalno-humanitarne udruge, društva i ustanove Grada Krka",2014,7000,7000,null,7000]
["11268954050","Pokret za život","Program za socijalno-humanitarne udruge, društva i ustanove Grada Krka",2014,3000,3000,null,3000]
["95951192179","Udruga za terapijsko jahanje \"Moj prijatelj\" Njivice","Program za socijalno-humanitarne udruge, društva i ustanove Grada Krka",2014,3000,3000,null,3000]
["10640645408","Udruga civilnih invalida rata PGŽ, Rijeka/01000639006","Program za socijalno-humanitarne udruge, društva i ustanove Grada Krka",2014,1000,1000,null,1000]
["08002314RB","Udruga \"Grad nag Gori\" Batomalj","Program za socijalno-humanitarne udruge, društva i ustanove Grada Krka",2014,10000,6000,null,6000]
["28645559315","Udruga invalida rada grada Rijeke","Program za socijalno-humanitarne udruge, društva i ustanove Grada Krka",2014,1000,1000,null,1000]
[null,"Hrvatsko društvo političkih zatvorenika - podružnica Rijeka","Program za socijalno-humanitarne udruge, društva i ustanove Grada Krka",2014,2000,null,null,{"$f":"SUM(F32:G32)","v":0}]
["48646835982","Udruga osoba opreriranih dojki \"Nada\"","Program za socijalno-humanitarne udruge, društva i ustanove Grada Krka",2014,null,null,2000,2000]
["05478483564","Jedriličarski klub \"Plav\"","Program sporta",2014,80000,80000,675,80675]
["36756573211","Judo klub Krk","Program sporta",2014,65000,65000,6550,71550]
["03533054678","Nogometni klub Krk","Program sporta",2014,390000,390000,12050,402050]
["86232456623","Boćarski klub Krk","Program sporta",2014,40000,40000,1000,41000]
["45131977269","Košarkaški klub Krk","Program sporta",2014,160000,160000,2850,162850]
["08000507MB","Boćarski klub Brzac","Program sporta",2014,50000,50000,5000,55000]
["96996266947","Atletski klub","Program sporta",2014,35000,35000,3000,38000]
["76916108498","Malonogometni klub krk","Program sporta",2014,12000,11500,null,11500]
["26187625353","ŠRD \"Glavoč\" Linardići","Program sporta",2014,5000,5000,null,5000]
["91785441723","Klub za športski ribolov \"Sv. Fuska\" Linardići","Program sporta",2014,5000,5000,null,5000]
["98470469935","Š.R.D. \"Čavlena\", Poljica","Program sporta",2014,5000,5000,null,5000]
["3010199207","Š.R.D. Lovrata","Program sporta",2014,40000,40000,3000,43000]
["21584915136","Š.R.D. \"Poteljan\" - Brzac","Program sporta",2014,5000,5000,null,5000]
["09329462921","K.P.A. \"Bios I\"","Program sporta",2014,5000,null,null,0]
["34791402277","U.Š.R. \"Pepice\", Krk","Program sporta",2014,3800,3800,null,3800]
["30112731589","Streljački klub \"Bodulka\", Krk","Program sporta",2014,15000,14100,null,14100]
["22800276467","Karate klub \"Krk\", Krk","Program sporta",2014,25000,25000,2270,27270]
["61154651100","Body building klub, Krk","Program sporta",2014,10000,10000,null,10000]
["62150220652","Streličarski klub Maura Kal, Krk","Program sporta",2014,35000,35000,null,35000]
["78472729020","Brdsko biciklistički klub, Krk","Program sporta",2014,10000,10000,200,10200]
["12308261479","Wakeboard klub , Krk","Program sporta",2014,15000,7500,null,7500]
["51467769782","STK Malinska-Dubašnica, Malinska","Program sporta",2014,25000,25000,4000,29000]
[43320920196,"D.P.Z. zbor \"Mići boduli\"","Program javnih potreba u kulturi",2014,70000,67800,null,67800]
["75741049188","Gradska limena glazba Krk","Program javnih potreba u kulturi",2014,56000,48600,null,48600]
["50403072234","Gradski pjevački zbor - Krk","Program javnih potreba u kulturi",2014,20000,1300,null,1300]
["46553375003","Katedra čakavskog sabora - Kornić","Program javnih potreba u kulturi",2014,22000,22000,4500,26500]
["02948679852","K.U.D. Vrh","Program javnih potreba u kulturi",2014,20000,20000,null,20000]
["12405095116","Kulturno društvo Kornić","Program javnih potreba u kulturi",2014,20000,20000,null,20000]
["17069296058","Folklorno društvo Poljica","Program javnih potreba u kulturi",2014,15000,15000,null,15000]
["77259416962","Plesna udruga Krk - Osjeti ritam Pinezići","Program javnih potreba u kulturi",2014,15000,15920,null,15920]
["86856424924","Multimedijalna udruga Krčka beseda Krk","Program javnih potreba u kulturi",2014,5000,5000,1000,6000]
["1120743MB","Glazbena škola Mirković - Lovran","Program javnih potreba u kulturi",2014,2000,2000,null,2000]
["66601934965","Plesna skupina Monfrina - Krk","Program javnih potreba u kulturi",2014,13000,13000,null,13000]
["01051197257","D.P.S. Povero Keko - Krk","Program javnih potreba u kulturi",2014,7500,4720,null,4720]
["04345582762","Udruga sopaca otoka Krka","Program javnih potreba u kulturi",2014,6000,6000,null,6000]
["12016859209","Udruga Knezovi krčki Frankopan","Program javnih potreba u kulturi",2014,15000,15000,null,15000]
["08001469","Karnevalska udruga \"Povero Keko\"","Program javnih potreba u kulturi",2014,8000,8000,3000,{"$f":"SUM(F70:G70)","v":11000}]
["77635713545","Otvoreno kazalište Omišalj","Program javnih potreba u kulturi",2014,4000,4000,null,4000]
["21349394661","Demo udruga bendova Grada Krka","Program javnih potreba u kulturi",2014,10000,10750,12500,{"$f":"SUM(F72:G72)","v":23250}]
["91438028726","Udruga Zlatni otok pjeva, Krk","Program javnih potreba u kulturi",2014,15000,15000,null,15000]
["23708870261","Šahovski klub - Krk","Program javnih potreba u tehničkoj kulturi",2014,47000,47000,2000,49000]
["61892828068","Karting klub Krk","Program javnih potreba u tehničkoj kulturi",2014,5000,5000,null,5000]
["60024777398","Informatički klub - Krk KIOK  905","Program javnih potreba u tehničkoj kulturi",2014,25000,24300,5000,29300]
["92972369942","Planinarsko društvo Obzova Njivice","Program javnih potreba u tehničkoj kulturi",2014,10000,10000,5000,15000]
["92942299310","Veslački klub \"Glagoljaš\" - Omišalj","Program javnih potreba u tehničkoj kulturi",2014,5000,5000,null,5000]
["40771840841","Streljački klub \"Dub\", Malinska","Program javnih potreba u tehničkoj kulturi",2014,5000,5000,null,5000]
["72556929505","Foto klub Krk","Program javnih potreba u tehničkoj kulturi",2014,5000,4600,null,4600]
["34876825002","Zrakoplovni klub otoka Krka","Program javnih potreba u tehničkoj kulturi",2014,5000,2500,null,2500]
["57026135581","Filatelističkodruštvo Krk","Program javnih potreba u tehničkoj kulturi",2014,10000,10000,null,10000]
["17305749299","Auto klub Krk","Program javnih potreba u tehničkoj kulturi",2014,30000,30000,7500,37500]
["91063173829","Moto klub Griffons Krk","Program javnih potreba u tehničkoj kulturi",2014,3000,3000,null,3000]
["67421370315","Lovačko društvo \"Kamenjarka\"","Program javnih potreba u poljoprivredi",2014,10000,10000,null,10000]
["89342153826","Lovačko društvo \"Šljuka\" - Krk","Program javnih potreba u poljoprivredi",2014,10000,10000,null,10000]
["50206656419","Udruga maslinara \"Drobnica\" - Krk","Program javnih potreba u poljoprivredi",2014,70000,29827.48,null,29827.48]
["82907571905","Udruga vinara otoka Krka \"Bukaleta\"","Program javnih potreba u poljoprivredi",2014,10000,10000,4500,14500]
["76318722399","Udruga pčelara \"Kadulja\" otoka Krka","Program javnih potreba u poljoprivredi",2014,5000,5000,null,5000]
["04150008463","Hrvatska demokratska zajednica -HDZ","Odluka o sredstvima za političke stranke Grada Krka",2014,14000,14000,null,14000]
["82435880635","Hrvatska narodna stranka -HNS","Odluka o sredstvima za političke stranke Grada Krka",2014,14000,14000,null,14000]
["02010978731","Socijal -demokratska partija SDP","Odluka o sredstvima za političke stranke Grada Krka",2014,14700,14700,null,14700]
["08692235081","Hrvatska socijalnoliberalna stranka HSLS","Odluka o sredstvima za političke stranke Grada Krka",2014,7000,7000,null,7000]
["40857015687","Zelena stranka","Odluka o sredstvima za političke stranke Grada Krka",2014,7700,7700,null,7700]
["97439500228","Nezavisna lista David Mrakovčić","Odluka o sredstvima za političke stranke Grada Krka",2014,14000,14000,null,14000]
["41495097026","Primorsko goranski savez - PGS","Odluka o sredstvima za političke stranke Grada Krka",2014,36400,36400,null,36400]
["77600514446","Lag-Bjeloglavi sup",null,2014,null,null,1500,1500]
["60334254350","Područna vatrogasna zajednica otoka Krka-za DVD Krk","Sporazum o sufinanc.",2014,380000,380000,19681.810000000001,399681.81]
["14945344758","Srpska nacionalna manjina ",null,2014,null,null,10000,10000]
["07103881876","Centar za brdsko planinsku poljoprivredu-ustanova",null,2014,100000,89025.81,null,89025.81]
["31501920607","Crveni križ Krk","Proračun grada za 2014- zakonska obveza",2014,120000,120000,12000,132000]
["12632735476","Udruga specijalne policije \"Ajkula\"","\"dani siječnja\" i ljetni kamp za djecu i madež,Oaza mira",2014,null,null,4000,4000]
["10693338236","Spirit Udruga građana","Man. Uhvati film",2014,null,null,1000,1000]
["19408676097","Šahovski klub - Draga","Turnir",2014,null,null,2000,{"$f":"SUM(F104:G104)","v":2000}]
[null,"Župa Sv. Jakova Ap.Kornić","Sufinanciranje hodočašća",2014,null,null,2000,2000]
["14945344758","Hrvatsko društvo likovnih umjetnika Rijeka","Održavanje radaudruge i akvarel -Krčka biskupija",2014,null,null,"4590.28",0]
["04647134362","Udruga Livingstone","Građanske inicijative",2014,5000,5000,null,5000]
["11546411511","Udruga Ti si OK","pokloni učen.",2014,null,null,1860,1860]
["90806197014","Klub za športski ribolov na moru \"Big OM\" Omišalj","Big game fishing",2014,null,null,2000,2000]
[62995970904,"LUKOM d.o.o.","Suf.izdavaštva:Katica Ivanišević - Antologija pjesništva otoka Krka",2014,4000,4000,null,4000]
[21212575148,"Krčka biskupija","Arheološko istraživanje crkve Sv.Lovre",2014,null,null,10000,10000]
[null,"Udruge hrvatske reprezentacije","Suf. Rada udruge",2014,null,null,1000,1000]
[65042498461,"Kristijan Žužić","Sportaš Hrvatske VI kategorije",2014,null,null,3000,3000]
["01276605236","Eva Marija Jurešić","Sportaš Hrvatske VI kategorije",2014,null,null,3000,3000]
["05029212031","Klub za ekspedicionizam i kulturu - KEK","Projekt \"Hrvatska iz zraka\"",2014,null,null,3000,3000]
[99420440852,"Udruga ljudi i običaji","Suf. Festivala MIK",2014,null,null,37000,37000]
[35628238969,"Lovačko društvo Zec Malinska","Obilježavanje 105.obljetnice",2014,null,null,5000,5000]
["03536662692","MNK Malinska-Dubašnica","Suf. Tiska knjige",2014,null,null,5000,5000]
[67035646025,"Kulturno-umjetnička udruga građana Sputnik","Prvomajski inkubator",2014,null,null,3500,3500]
[null,"UKUPNO:",null,null,{"$f":"SUM(E4:E119)","v":2599100},{"$f":"SUM(F4:F119)","v":2474043.29},{"$f":"SUM(G4:G119)","v":261151},2735194.29]
[]
["*Ukupno knjiženo na kontima 381 tekuće donacije 2.890.904,16 i 382 kapitalne donacije 475.160,99 od čega je 2.735.194,29 kn plaćeno neprofitnim udrugama a 630.870,86 dobavljačima prema izdanom računu,ustanovama i sl. prema odluci Gradonačelnika,sporazumu,ugovoru (nije na popisu)"]
[]
[]
[null,null,"REKAPITULACIJA"]
[]
[null,null,"NAZIV PROGRAMA","POZICIJA PRORAČUNA 2014","PLANIRANO PREMA PROGRAMU","OSTVARENO PREMA PROGRAMU *","UKUPNO OSTVAREN PROGRAM","RAZLIKA (ISPLATE IZ REZERVE PROGRAMA)"]
[null,null,"Program za socijalno-humanitarne udruge, društva i ustanove Grada Krka",1218,{"$f":"SUM(E4:E33)","v":268000},{"$f":"SUM(F4:F33)","v":241000},254600,{"$f":"G128-F128","v":13600}]
[null,null,"Program sporta",1217,{"$f":"SUM(E34:E55)","v":1035800},{"$f":"SUM(F34:F55)","v":1021900},1030475,{"$f":"G129-F129","v":8575}]
[null,null,"Program javnih potreba u kulturi",1260,{"$f":"SUM(E56:E73)","v":323500},{"$f":"SUM(F56:F73)","v":294090},294090,0]
[null,null,"Program javnih potreba u tehničkoj kulturi",1222,{"$f":"SUM(E74:E84)","v":150000},{"$f":"SUM(F74:F84)","v":146400},149400,3000]
[null,null,"Program javnih potreba u poljoprivredi",2115,{"$f":"SUM(E85:E89)","v":105000},{"$f":"SUM(F85:F89)","v":64827.479999999996},70799.98,5972.5]
[null,null,"Odluka o sredstvima za političke stranke Grada Krka",2104,{"$f":"SUM(E90:E96)","v":107800},{"$f":"SUM(F90:F96)","v":107800},107800,0]
[]
[null,null,"* U koloni ostvareno prema Programu prikazana su sredstva doznačena udrugama za one udruge koje imaju zaključene ugovore"]
[null,null,"Rashodi koji su realizirani iz rezerve Programa a nisu isplaćeni temeljem ugovora nisu uključeni"]

{"sheet":"Popis donacija do 31.12.2015.","index":2,"n_rows":130,"n_cols":8,"rows_kept":130,"cut":false,"hidden":false,"merged":[[115,0,115,6]]}
["GRAD  KRK  - IZVJEŠTAJ O  DONACIJAMA UDRUGAMA I POLITIČKIM STRANKAMA IZ PRORAČUNA DO 31.12.2015."]
[1,2,3,4,5,6,7,9]
["OIB primatelja donacije","Naziv primatelja donacije /šifra PP","Naziv programa ili pojedinačne donacije","Godina","Planirano prema programu javnih potreba iz kolone 3.-ugovor","Ostvarena donacija po programu iz kolone 3.","Ostale donacije prema odluci Gradonačelnika","Ukupno donacija udruzi 2014"]
["13644894582","Udruga HVIDRA, otok Krk","Program za socijalno-humanitarne udruge, društva i ustanove Grada Krka",2015,25000,25000,null,{"$f":"SUM(F4:G4)","v":25000}]
["04341489477","Udruga antifašističkih boraca Otoka Krka","Program za socijalno-humanitarne udruge, društva i ustanove Grada Krka",2015,15000,15000,5974,20974]
["04341489477","Udruga antifašističkih boraca Grada Krka","Program za socijalno-humanitarne udruge, društva i ustanove Grada Krka",2015,10000,10000,null,10000]
["04341489477","Udruga antifašističkih boraca Šotovento","Program za socijalno-humanitarne udruge, društva i ustanove Grada Krka",2015,10000,10000,null,10000]
["87108816444","Udruga umirovljenika Grada Krka","Program za socijalno-humanitarne udruge, društva i ustanove Grada Krka",2015,30000,30000,14728.38,44728.38]
["67753818672","Udruga umirovljenika Šotovento","Program za socijalno-humanitarne udruge, društva i ustanove Grada Krka",2015,30000,27000,17474.72,44474.720000000001]
["17299379476","Udruga gluhih i nagluhih","Program za socijalno-humanitarne udruge, društva i ustanove Grada Krka",2015,2000,2000,null,2000]
["80713734687","Udruga slijepih PGŽ Rijeka","Program za socijalno-humanitarne udruge, društva i ustanove Grada Krka",2015,2000,2000,null,2000]
["71954510830","Udruga osoba s mišićnom distrofijom PGŽ","Program za socijalno-humanitarne udruge, društva i ustanove Grada Krka",2015,2000,2000,null,2000]
["470252MB","Caritas Krk","Program za socijalno-humanitarne udruge, društva i ustanove Grada Krka",2015,10000,7500,null,7500]
["73790034362","Kvarnerski vez","Program za socijalno-humanitarne udruge, društva i ustanove Grada Krka",2015,3000,null,null,0]
["76455622311","Udruga invalida kvarnerskih otoka","Program za socijalno-humanitarne udruge, društva i ustanove Grada Krka",2015,10000,10000,null,10000]
["59764000772","Gorska služba spašavanja","Program za socijalno-humanitarne udruge, društva i ustanove Grada Krka",2015,20000,20000,null,20000]
["45092136734","Povijesno društvo Otoka Krka","Program za socijalno-humanitarne udruge, društva i ustanove Grada Krka",2015,5000,5000,null,5000]
["61916000339","Udruga za zaštitu životinja \"Felix\"","Program za socijalno-humanitarne udruge, društva i ustanove Grada Krka",2015,4000,4000,null,4000]
["68386873672","Udruga \"Obitelj za mlade\"","Program za socijalno-humanitarne udruge, društva i ustanove Grada Krka",2015,4000,4000,null,4000]
["08002590MB","Udruga veterana Domovinskog rata","Program za socijalno-humanitarne udruge, društva i ustanove Grada Krka",2015,15000,15000,7000,22000]
["26889141768","Klub liječenih ovisnika otoka Krka \"Gromača\"","Program za socijalno-humanitarne udruge, društva i ustanove Grada Krka",2015,20000,20000,null,20000]
["45613787772","Nastavni zavod za javno zdravstvo","Program za socijalno-humanitarne udruge, društva i ustanove Grada Krka",2015,10000,10000,6770,16770]
["60978973343","Zajednica talijana Krk","Program za socijalno-humanitarne udruge, društva i ustanove Grada Krka",2015,10000,7000,null,7000]
["11268954050","Pokret za život","Program za socijalno-humanitarne udruge, društva i ustanove Grada Krka ",2015,3000,3000,null,3000]
["95951192179","Udruga za terapijsko jahanje \"Moj prijatelj\" Njivice","Program za socijalno-humanitarne udruge, društva i ustanove Grada Krka",2015,3000,3000,null,3000]
["57537731492","Zajednica Crnogoraca PGŽ-a","Program za socijalno-humanitarne udruge, društva i ustanove Grada Krka",2015,2000,null,null,0]
["48646835982","Udruga osoba operiranih dojki \"Nada\"","Program za socijalno-humanitarne udruge, društva i ustanove Grada Krka-kalendari",2015,null,null,1500,1500]
["05478483564","Jedriličarski klub \"Plav\"","Program sporta",2015,80000,80000,825,80825]
["36756573211","Judo klub Krk","Program sporta",2015,65000,65000,5687.5,70687.5]
["03533054678","Nogometni klub Krk","Program sporta",2015,390000,390000,14150,404150]
["86232456623","Boćarski klub Krk","Program sporta",2015,40000,40000,null,40000]
["45131977269","Košarkaški klub Krk","Program sporta",2015,160000,160000,null,160000]
["08000507MB","Boćarski klub Brzac","Program sporta",2015,50000,50000,null,50000]
["96996266947","Atletski klub","Program sporta",2015,35000,35000,40000,75000]
["76916108498","Malonogometni klub krk","Program sporta",2015,12000,9500,null,9500]
["26187625353","ŠRD \"Glavoč\" Linardići","Program sporta",2015,5000,5000,3000,{"$f":"SUM(F36:G36)","v":8000}]
["91785441723","Klub za športski ribolov \"Sv. Fuska\" Linardići","Program sporta",2015,5000,5000,null,5000]
["98470469935","Š.R.D. \"Čavlena\", Poljica","Program sporta",2015,5000,5000,null,5000]
["3010199207","Š.R.D. Lovrata","Program sporta",2015,40000,40000,23000,63000]
["21584915136","Š.R.D. \"Poteljan\" - Brzac","Program sporta",2015,5000,5000,null,5000]
["34791402277","U.Š.R. \"Pepice\", Krk","Program sporta",2015,5000,5000,null,5000]
["30112731589","Streljački klub \"Bodulka\", Krk","Program sporta",2015,15000,15000,900,15900]
["22800276467","Karate klub \"Krk\", Krk","Program sporta",2015,25000,25000,3560,28560]
["62150220652","Streličarski klub Maura Kal, Krk","Program sporta",2015,35000,35000,null,35000]
["78472729020","Brdsko biciklistički klub, Krk","Program sporta",2015,10000,null,null,0]
["12308261479","Wakeboard klub , Krk","Program sporta",2015,15000,15000,null,15000]
["51467769782","STK Malinska-Dubašnica, Malinska","Program sporta",2015,25000,25000,5000,30000]
["46126478423","Društvo za športsku rekreaciju \"Šišulica\"","Program sporta",2015,5000,5000,null,5000]
[43320920196,"D.P.Z. zbor \"Mići boduli\"","Program javnih potreba u kulturi",2015,70000,70000,2837.16,72837.16]
["75741049188","Gradska limena glazba Krk","Program javnih potreba u kulturi",2015,60000,60000,6000,66000]
["50403072234","Gradski pjevački zbor - Krk","Program javnih potreba u kulturi",2015,15000,15000,null,15000]
["46553375003","Katedra čakavskog sabora - Kornić","Program javnih potreba u kulturi",2015,22000,22000,null,22000]
["02948679852","K.U.D. Vrh","Program javnih potreba u kulturi",2015,20000,20000,3000,23000]
["12405095116","Kulturno društvo Kornić","Program javnih potreba u kulturi",2015,20000,20000,10000,30000]
["17069296058","Folklorno društvo Poljica","Program javnih potreba u kulturi",2015,15000,12000,6000,18000]
["77259416962","Plesna udruga Krk - Osjeti ritam Pinezići","Program javnih potreba u kulturi",2015,15000,14000,null,14000]
["86856424924","Multimedijalna udruga Krčka beseda Krk","Program javnih potreba u kulturi",2015,5000,5000,1000,6000]
["1120743MB","Glazbena škola Mirković - Lovran","Program javnih potreba u kulturi",2015,2000,null,null,0]
["66601934965","Plesna skupina Monfrina - Krk","Program javnih potreba u kulturi",2015,13000,13000,null,13000]
["04345582762","Udruga sopaca otoka Krka","Program javnih potreba u kulturi",2015,6000,6000,null,6000]
["12016859209","Udruga Knezovi krčki Frankopan","Program javnih potreba u kulturi",2015,15000,15000,6000,21000]
["08001469","Karnevalska udruga \"Povero Keko\"","Program javnih potreba u kulturi",2015,8000,8000,3000,11000]
["77635713545","Otvoreno kazalište Omišalj","Program javnih potreba u kulturi",2015,4000,4000,null,4000]
["21349394661","Demo udruga bendova Grada Krka-Udruga Kreativni Krk","Program javnih potreba u kulturi",2015,15000,15000,40177,55177]
["91438028726","Udruga Zlatni otok pjeva, Krk","Program javnih potreba u kulturi",2015,15000,15000,10000,25000]
["23708870261","Šahovski klub - Krk","Program javnih potreba u tehničkoj kulturi",2015,47000,47050,7000,54050]
["60024777398","Informatički klub - Krk KIOK  905","Program javnih potreba u tehničkoj kulturi",2015,25000,25000,null,25000]
["92972369942","Planinarsko društvo Obzova Njivice","Program javnih potreba u tehničkoj kulturi",2015,15000,15000,8715.9500000000007,{"$f":"SUM(F68:G68)","v":23715.95}]
["92942299310","Veslački klub \"Glagoljaš\" - Omišalj","Program javnih potreba u tehničkoj kulturi",2015,5000,5000,null,5000]
["72556929505","Foto klub Krk","Program javnih potreba u tehničkoj kulturi",2015,5000,5000,null,5000]
["34876825002","Zrakoplovni klub otoka Krka","Program javnih potreba u tehničkoj kulturi",2015,5000,5000,null,5000]
["57026135581","Filatelističkodruštvo Krk","Program javnih potreba u tehničkoj kulturi",2015,10000,10000,null,10000]
["17305749299","Auto klub Krk","Program javnih potreba u tehničkoj kulturi",2015,30000,30000,null,30000]
["91063173829","Moto klub Griffons Krk","Program javnih potreba u tehničkoj kulturi",2015,3000,3000,null,3000]
["67421370315","Lovačko društvo \"Kamenjarka\"","Program javnih potreba u poljoprivredi",2015,10000,10000,null,10000]
["89342153826","Lovačko društvo \"Šljuka\" - Krk","Program javnih potreba u poljoprivredi",2015,10000,10000,null,10000]
["50206656419","Udruga maslinara \"Drobnica\" - Krk","Program javnih potreba u poljoprivredi",2015,55000,55000,21990,76990]
["82907571905","Udruga vinara otoka Krka \"Bukaleta\"","Program javnih potreba u poljoprivredi",2015,10000,10000,2000,12000]
["76318722399","Udruga pčelara \"Kadulja\" otoka Krka","Program javnih potreba u poljoprivredi",2015,8000,8000,null,8000]
["04150008463","Hrvatska demokratska zajednica -HDZ","Odluka o sredstvima za političke stranke Grada Krka",2015,12250,12250,null,12250]
["82435880635","Hrvatska narodna stranka -HNS","Odluka o sredstvima za političke stranke Grada Krka",2015,14000,14000,null,14000]
["02010978731","Socijal -demokratska partija SDP","Odluka o sredstvima za političke stranke Grada Krka",2015,14700,14700,null,14700]
["08692235081","Hrvatska socijalnoliberalna stranka HSLS","Odluka o sredstvima za političke stranke Grada Krka",2015,7000,7000,null,7000]
["40857015687","Zelena stranka","Odluka o sredstvima za političke stranke Grada Krka",2015,7700,7700,null,7700]
["97439500228","Nezavisna lista David Mrakovčić","Odluka o sredstvima za političke stranke Grada Krka",2015,5250,5250,null,5250]
["11773779232","Darko Purić - nezavisni vijećnik","Odluka o sredstvima za političke stranke Grada Krka",2015,5250,5250,null,5250]
["26665813859","HSP- Hrvatska stranka prava","Odluka o sredstvima za političke stranke Grada Krka",2015,1750,1750,null,1750]
["41495097026","Primorsko goranski savez - PGS","Odluka o sredstvima za političke stranke Grada Krka",2015,36400,36400,null,36400]
["77600514446","Lag-Bjeloglavi sup",null,2015,null,null,12562,12562]
["60334254350","Područna vatrogasna zajednica otoka Krka-za DVD Krk","Sporazum o sufinanc.",2015,380000,380000,null,380000]
["07103881876","Centar za brdsko planinsku poljoprivredu-ustanova",null,2015,56000,56000,null,56000]
["31501920607","Crveni križ Krk","Proračun grada za 2014- zakonska obveza",2015,120000,120000,3000,123000]
["12632735476","Udruga specijalne policije \"Ajkula\"","\"dani siječnja\" i ljetni kamp za djecu i madež,Oaza mira",2015,null,null,2000,2000]
["10693338236","Spirit Udruga građana","Man. Uhvati film",2015,null,null,1000,1000]
["19408676097","Šahovski klub - Draga","Turnir",2015,null,null,2000,2000]
["14945344758","Hrvatsko društvo likovnih umjetnika Rijeka","Održavanje radaudruge i akvarel -Krčka biskupija",2015,null,null,2000,2000]
["04647134362","Udruga Livingstone","Građanske inicijative",2015,5000,5000,null,5000]
["11546411511","Udruga Ti si OK","pokloni učen.",2015,null,null,3000,3000]
["90806197014","Klub za športski ribolov na moru \"Big OM\" Omišalj","Big game fishing",2015,null,null,2000,2000]
[99420440852,"Udruga ljudi i običaji","Suf. Festivala MIK",2015,null,null,74000,{"$f":"SUM(F100:G100)","v":74000}]
[35628238969,"Lovačko društvo Zec Malinska","Obilježavanje 105.obljetnice",2015,null,null,7969.78,7969.78]
[null,"Savjet mladih grada Krka","Temeljem sporazuma odobrena sredstva su prenesena udruzi Kreativni Krk",2015,30000,null,null,0]
[61989185242,"Hrvatska akademija znanosti i umjestnosti",null,2015,10000,null,null,0]
[15176383116,"LIONS KLUB RIJEKA-KORZO       ","Aparat neurofeedback",2015,null,null,1000,1000]
[96703924639,"Udruga dragovoljaca i veterana RH-Omišalj",null,2015,null,null,2000,2000]
[77893798390,"Udruga umirovljenika unutarnjih poslova","Uređenje zapuštenog puta na predjelu Kimpi-Kaštel",2015,null,null,10000,10000]
[4535750174,"K.D. SV.JURAJ, Kras","Smotra folklora u Betini",2015,null,null,1000,1000]
[21365484017,"Centar za rehabilitaciju FORTICA","Financ. Potpora za 5.susret MATP-a",2015,null,null,1000,1000]
[10693338236,"Udruga SPIRIT",null,2015,null,null,1000,1000]
[10912945962,"Pazinski kolegij- klasična gimnazija",null,2015,null,null,1000,1000]
[null,"IVAN SINDIČIĆ- nagrada za darovite sportaše","2.mjesto na nacionalnom kadetskom prvenstvu RH (skijanje na vodi)",2015,null,null,3000,3000]
[null,"MARKO ŽUŽIĆ-nagrada za darovite sportaše","2.mjesto na nacionalnom juniorskom prvenstvu RH u jedrenju",2015,null,null,3000,3000]
[9922829861,"Građevinsko tehnička škola Rijeka","Sufinanciranje škole stvaralaštva Ivor Hrast",2015,null,null,2150,2150]
[null,"UKUPNO:",null,null,{"$f":"SUM(E4:E101)","v":2495300},{"$f":"SUM(F4:F101)","v":2463350},{"$f":"SUM(G4:G101)","v":386821.49000000005},2850171.49]
[]
["*Ukupno knjiženo na kontima 381 tekuće donacije 3.107.816,23 i 382 kapitalne donacije 1.135.289,42 od čega je 2.850.171,49 kn plaćeno neprofitnim udrugama a 1.392.934,16 dobavljačima prema izdanom računu,ustanovama i sl. prema odluci Gradonačelnika,sporazumu,ugovoru (nije na popisu)"]
[]
[]
[null,null,"REKAPITULACIJA"]
[]
[null,null,"NAZIV PROGRAMA","POZICIJA PRORAČUNA 2014","PLANIRANO PREMA PROGRAMU","OSTVARENO PREMA PROGRAMU *","UKUPNO OSTVAREN PROGRAM","RAZLIKA (ISPLATE IZ REZERVE PROGRAMA)"]
[null,null,"Program za socijalno-humanitarne udruge, društva i ustanove Grada Krka",1218,{"$f":"SUM(E4:E25)","v":243000},{"$f":"SUM(F4:F25)","v":231500},{"$f":"SUM(H4:H27)","v":284947.09999999998},{"$f":"G122-F122","v":53447.099999999977}]
[null,null,"Program sporta",1217,{"$f":"SUM(E28:E48)","v":1027000},{"$f":"SUM(F28:F48)","v":1014500},{"$f":"SUM(H28:H48)","v":1110622.5},96122.5]
[null,null,"Program javnih potreba u kulturi",1260,{"$f":"SUM(E49:E65)","v":320000},{"$f":"SUM(F49:F65)","v":314000},{"$f":"SUM(H49:H65)","v":402014.16000000003},88014.160000000033]
[null,null,"Program javnih potreba u tehničkoj kulturi",1222,{"$f":"SUM(E66:E74)","v":145000},{"$f":"SUM(F66:F74)","v":145050},{"$f":"SUM(H66:H74)","v":160765.95000000001},15715.950000000012]
[null,null,"Program javnih potreba u poljoprivredi",2115,{"$f":"SUM(E75:E79)","v":93000},{"$f":"SUM(F75:F79)","v":93000},{"$f":"SUM(H75:H79)","v":116990},23990]
[null,null,"Odluka o sredstvima za političke stranke Grada Krka",2104,{"$f":"SUM(E80:E88)","v":104300},{"$f":"SUM(F80:F88)","v":104300},{"$f":"SUM(H80:H88)","v":104300},0]
[]
[null,null,"* U koloni ostvareno prema Programu prikazana su sredstva doznačena udrugama za one udruge koje imaju zaključene ugovore"]
[null,null,"Rashodi koji su realizirani iz rezerve Programa a nisu isplaćeni temeljem ugovora nisu uključeni"]

{"sheet":"Popis donacija do 31.12.2016.","index":3,"n_rows":136,"n_cols":8,"rows_kept":136,"cut":false,"hidden":false,"merged":[[118,0,118,6]]}
["GRAD  KRK  - IZVJEŠTAJ O  DONACIJAMA UDRUGAMA I POLITIČKIM STRANKAMA IZ PRORAČUNA DO 31.12.2016."]
[1,2,3,4,5,6,7,9]
["OIB primatelja donacije","Naziv primatelja donacije /šifra PP","Naziv programa ili pojedinačne donacije","Godina","Planirano prema programu javnih potreba iz kolone 3.-ugovor","Ostvarena donacija po programu iz kolone 3.","Ostale donacije prema odluci Gradonačelnika","Ukupno donacija udruzi 2016"]
["13644894582","Udruga HVIDRA, otok Krk","Program za socijalno-humanitarne udruge, društva i ustanove Grada Krka",null,25000,25000,null,{"$f":"F4+G4","v":25000}]
["04341489477","Udruga antifašističkih boraca Otoka Krka","Program za socijalno-humanitarne udruge, društva i ustanove Grada Krka",null,37000,37000,3000,{"$f":"F5+G5","v":40000}]
["87108816444","Udruga umirovljenika Grada Krka","Program za socijalno-humanitarne udruge, društva i ustanove Grada Krka",null,50000,50000,5000,55000]
["67753818672","Udruga umirovljenika Šotovento","Program za socijalno-humanitarne udruge, društva i ustanove Grada Krka",null,50000,42800,null,42800]
["71954510830","Udruga osoba s mišićnom distrofijom PGŽ","Program za socijalno-humanitarne udruge, društva i ustanove Grada Krka",null,2000,2000,null,2000]
["470252MB","Caritas Krk","Program za socijalno-humanitarne udruge, društva i ustanove Grada Krka",null,12000,12000,null,12000]
["76455622311","Udruga invalida kvarnerskih otoka","Program za socijalno-humanitarne udruge, društva i ustanove Grada Krka",null,12000,12000,null,12000]
["59764000772","Gorska služba spašavanja","Program za socijalno-humanitarne udruge, društva i ustanove Grada Krka",null,18000,18000,null,18000]
["60978973343","Zajednica talijana Krk","Program za socijalno-humanitarne udruge, društva i ustanove Grada Krka",null,10000,5900,4100,{"$f":"F12+G12","v":10000}]
["45092136734","Povijesno društvo Otoka Krka","Program za socijalno-humanitarne udruge, društva i ustanove Grada Krka",null,5000,5000,null,5000]
["61916000339","Udruga za zaštitu životinja \"Felix\"","Program za socijalno-humanitarne udruge, društva i ustanove Grada Krka",null,4000,4000,null,4000]
["08002590MB","Udruga veterana Domovinskog rata","Program za socijalno-humanitarne udruge, društva i ustanove Grada Krka",null,15000,15000,13000,28000]
["26889141768","Klub liječenih ovisnika otoka Krka \"Gromača\"","Program za socijalno-humanitarne udruge, društva i ustanove Grada Krka",null,20000,20000,null,20000]
["11268954050","Pokret za život","Program za socijalno-humanitarne udruge, društva i ustanove Grada Krka ",null,3000,3000,null,3000]
["66075422561","Udruga Kreativni 40+ podr. Malinska","Program za socijalno-humanitarne udruge, društva i ustanove Grada Krka ",null,2000,1000,null,1000]
["9165632246","Društvo multiple skleroze PGŽ","Program za socijalno-humanitarne udruge, društva i ustanove Grada Krka ",null,2000,2000,800,2800]
["95951192179","Udruga za terapijsko jahanje \"Moj prijatelj\" Njivice","Program za socijalno-humanitarne udruge, društva i ustanove Grada Krka",null,3000,3000,1000,{"$f":"F20+G20","v":4000}]
["05478483564","Jedriličarski klub \"Plav\"","Program sporta",null,80000,80000,null,{"$f":"F21+G21","v":80000}]
["36756573211","Judo klub Krk","Program sporta",null,65000,65000,6185,71185]
["03533054678","Nogometni klub Krk","Program sporta",null,390000,390000,20687.5,410687.5]
["86232456623","Boćarski klub Krk","Program sporta",null,40000,40000,null,40000]
["45131977269","Košarkaški klub Krk","Program sporta",null,160000,160000,null,160000]
["08000507MB","Boćarski klub Brzac","Program sporta",null,50000,50000,10000,60000]
["96996266947","Atletski klub","Program sporta",null,35000,35000,23625,58625]
["76916108498","Malonogometni klub krk","Program sporta",null,5000,3000,null,3000]
["26187625353","ŠRD \"Glavoč\" Linardići","Program sporta",null,5000,5000,null,5000]
["91785441723","Klub za športski ribolov \"Sv. Fuska\" Linardići","Program sporta",null,5000,5000,null,5000]
["98470469935","Š.R.D. \"Čavlena\", Poljica","Program sporta",null,5000,5000,3000,8000]
["3010199207","Š.R.D. Lovrata","Program sporta",null,40000,40000,5000,45000]
["21584915136","Š.R.D. \"Poteljan\" - Brzac","Program sporta",null,5000,5000,null,5000]
["34791402277","U.Š.R. \"Pepice\", Krk","Program sporta",null,5000,5000,null,5000]
["30112731589","Streljački klub \"Bodulka\", Krk","Program sporta",null,15000,15000,null,15000]
["22800276467","Karate klub \"Krk\", Krk","Program sporta",null,25000,25000,5000,30000]
["62150220652","Streličarski klub Maura Kal, Krk","Program sporta",null,35000,35000,3600,38600]
["12308261479","Wakeboard klub , Krk","Program sporta",null,15000,15000,null,15000]
["51467769782","STK Malinska-Dubašnica, Malinska","Program sporta",null,30000,30000,3000,33000]
["69727213411","Rukometni klub Omišalj","Program sporta",null,5000,5000,null,5000]
["46126478423","Društvo za športsku rekreaciju \"Šišulica\"","Program sporta",null,5000,5000,null,5000]
[43320920196,"D.P.Z. zbor \"Mići boduli\"","Program javnih potreba u kulturi",null,70000,70000,10000,80000]
["75741049188","Gradska limena glazba Krk","Program javnih potreba u kulturi",null,60000,58300,null,58300]
["50403072234","Gradski pjevački zbor - Krk","Program javnih potreba u kulturi",null,15000,15000,null,15000]
["46553375003","Katedra čakavskog sabora - Kornić","Program javnih potreba u kulturi",null,20000,22000,3500,25500]
["02948679852","K.U.D. Vrh","Program javnih potreba u kulturi",null,20000,20000,3000,23000]
["12405095116","Kulturno društvo Kornić","Program javnih potreba u kulturi",null,20000,20000,3000,23000]
["77259416962","Plesna udruga Krk - Osjeti ritam Pinezići","Program javnih potreba u kulturi",null,15000,15000,5000,20000]
["86856424924","Multimedijalna udruga Krčka beseda Krk","Program javnih potreba u kulturi",null,5000,5000,5000,10000]
["1120743MB","Glazbena škola Mirković - Lovran","Program javnih potreba u kulturi",null,2000,2000,2000,4000]
["66601934965","Plesna skupina Monfrina - Krk","Program javnih potreba u kulturi",null,13000,13000,null,13000]
["04345582762","Udruga sopaca otoka Krka","Program javnih potreba u kulturi",null,6000,6000,null,6000]
["12016859209","Udruga Knezovi krčki Frankopan","Program javnih potreba u kulturi",null,15000,15000,null,15000]
["08001469","Karnevalska udruga \"Povero Keko\"","Program javnih potreba u kulturi",null,8000,8000,8000,16000]
["77635713545","Otvoreno kazalište Omišalj","Program javnih potreba u kulturi",null,2000,2000,null,2000]
["21349394661","Demo udruga bendova Grada Krka-Udruga Kreativni Krk","Program javnih potreba u kulturi",null,25000,25000,38000,63000]
["60978973343","Zajednica talijana Krk","Program javnih potreba u kulturi",null,10000,5900,4100,10000]
["01051197257","Dječja plesna skupina Povero Keko","Program javnih potreba u kulturi",null,7000,7000,null,7000]
["10569544707","Udruga Ćuk","Program javnih potreba u kulturi",null,20000,20000,5000,25000]
["23708870261","Šahovski klub - Krk","Program javnih potreba u tehničkoj kulturi",null,47000,47000,5000,52000]
["60024777398","Informatički klub - Krk KIOK  905","Program javnih potreba u tehničkoj kulturi",null,25000,25000,3000,28000]
["92972369942","Planinarsko društvo Obzova Njivice","Program javnih potreba u tehničkoj kulturi",null,10000,10000,3000,13000]
["92942299310","Veslački klub \"Glagoljaš\" - Omišalj","Program javnih potreba u tehničkoj kulturi",null,10000,10000,2000,12000]
["72556929505","Foto klub Krk","Program javnih potreba u tehničkoj kulturi",null,10000,10000,4000,14000]
["34876825002","Zrakoplovni klub otoka Krka","Program javnih potreba u tehničkoj kulturi",null,5000,5000,null,5000]
["57026135581","Filatelističkodruštvo Krk","Program javnih potreba u tehničkoj kulturi",null,10000,10000,null,10000]
["17305749299","Auto klub Krk","Program javnih potreba u tehničkoj kulturi",null,30000,30000,2000,32000]
[40771840841,"Streljački klub DUB Malinska","Program javnih potreba u tehničkoj kulturi",null,3000,3000,null,3000]
["91063173829","Moto klub Griffons Krk","Program javnih potreba u tehničkoj kulturi",null,3000,3000,null,3000]
["67421370315","Lovačko društvo \"Kamenjarka\"","Program javnih potreba u poljoprivredi",null,10000,10000,null,{"$f":"F70+G70","v":10000}]
["89342153826","Lovačko društvo \"Šljuka\" - Krk","Program javnih potreba u poljoprivredi",null,10000,10000,null,10000]
["50206656419","Udruga maslinara \"Drobnica\" - Krk","Program javnih potreba u poljoprivredi",null,70000,70000,59177.18,129177.18]
["82907571905","Udruga vinara otoka Krka \"Bukaleta\"","Program javnih potreba u poljoprivredi",null,10000,10000,null,10000]
["56390519158","Udruga proizvođača meda od kadulje","Program javnih potreba u poljoprivredi",null,1000,1000,null,1000]
["76318722399","Udruga pčelara \"Kadulja\" otoka Krka","Program javnih potreba u poljoprivredi",null,4000,4000,null,4000]
["04150008463","Hrvatska demokratska zajednica -HDZ","Odluka o sredstvima za političke stranke Grada Krka",null,7000,7000,null,7000]
["82435880635","Hrvatska narodna stranka -HNS","Odluka o sredstvima za političke stranke Grada Krka",null,14000,14000,null,14000]
["02010978731","Socijal -demokratska partija SDP","Odluka o sredstvima za političke stranke Grada Krka",null,14700,14700,null,14700]
["08692235081","Hrvatska socijalnoliberalna stranka HSLS","Odluka o sredstvima za političke stranke Grada Krka",null,7000,7000,null,7000]
["40857015687","Zelena stranka","Odluka o sredstvima za političke stranke Grada Krka",null,7700,7700,null,7700]
["97439500228","Nezavisna lista David Mrakovčić","Odluka o sredstvima za političke stranke Grada Krka",null,7000,7000,null,7000]
["11773779232","Darko Purić - nezavisni vijećnik","Odluka o sredstvima za političke stranke Grada Krka",null,7000,7000,null,7000]
["26665813859","HSP- Hrvatska stranka prava","Odluka o sredstvima za političke stranke Grada Krka",null,7000,7000,null,7000]
["41495097026","Primorsko goranski savez - PGS","Odluka o sredstvima za političke stranke Grada Krka",null,36400,36400,null,36400]
["05433916893","Udruga \"Moj otok\"","Građanske inicijative",null,35000,17000,null,{"$f":"G85+F85","v":17000}]
["04647134362","Udruga Livingstone","Građanske inicijative",null,5000,5000,null,{"$f":"F86+G86","v":5000}]
["52251744471","Srednja škola Hrvatski kralj Zvonimir Krk","Novigradsko proljeće, sufinanciranje maturalne zabave, izlet profesora SŠ",null,null,null,10960,{"$f":"F87+G87","v":10960}]
["05478483564","Jedriličarski klub \"Plav\"","Financiranje izdavanja \"Monografije 140 godina JK Plav\"",null,20000,20000,null,20000]
["05478483564","Jedriličarski klub \"Plav\"","Projekt \"Izgradnja hangara JK Plav\"",null,360000,19000,null,19000]
["17069296058","Folklorno društvo Poljica","Susret klapa i folklora Kuzmanja i zaključak vezan za podmirenje osnovnih troškova",null,null,null,13000,13000]
["60174672203","Dubrovnik Sun","Novigradsko proljeće",null,null,null,1820,{"$f":"F91+G91","v":1820}]
["23640080861","Osnovna škola Fran Krsto Frankopan, Krk","Projekt \"Umjetnik i ja\"",null,null,null,4000,4000]
["27267656235","Osnovna škola Rivarela-škola stvaralaštva","kotizacija-Ivor Hrast",null,null,null,400,400]
["43047317885","Prirodoslovna i grafička škola Rijeka","Sufinanciranje puta na \"Globe\"konferenciju u Coloradu-USA-dva učenika",null,null,null,1000,1000]
[21365484017,"Centar za rehabilitaciju FORTICA","Projekt širenja mreže podrške lokalnoj zajednici",null,12729,12729,null,{"$f":"F95+G95","v":12729}]
["77600514446","Lag-Bjeloglavi sup",null,null,null,null,12562,12562]
["60334254350","Područna vatrogasna zajednica otoka Krka-za DVD Krk","Sporazum o sufinanc.",null,380000,380000,null,380000]
["64927145649","Turistička zajednica PGŽ","Sufinanciranje promotivne kampanje oglaš.sa zračnim prijevoznicima",null,59734.46,59734.46,null,59734.46]
["38812088413","Turistička zajednica otoka Krka","Financiranje rada \"hladnog pogona\" Turističke zajednice otoka Krka i zajedničkih programa",null,128950.39999999999,128950.39999999999,null,128950.39999999999]
["38812088413","Turistička zajednica otoka Krka","Sufinanc. Troškova prezentacije otoka Krka u Ljubljani, Učešće grada u troškovima za zgradu Trg sv. Kvirina",null,null,null,15556.23,15556.23]
["07103881876","Centar za poljoprivredu i ruralni razvoj",null,null,65000,65000,null,65000]
["31501920607","Crveni križ Krk","Proračun grada za 2016- zakonska obveza",null,120000,120000,7500,127500]
["73790034362","Biskupija Krk - Kvarnerski Vez",null,null,null,null,3000,3000]
["37088953042","Društvo sportske rekreacije \"Primorje\"",null,null,null,null,1000,1000]
["35628238969","Lovačko društvo Zec Malinska",null,null,null,null,20000,20000]
["96538191387","Klapa Vejanke",null,null,null,null,4000,4000]
["19408676097","Šahovski klub - Draga","Turnir",null,null,null,3000,{"$f":"F107+G107","v":3000}]
["11546411511","Udruga Ti si OK","Edukativni materijal za učenike 1. razreda",null,null,null,3250,3250]
["94852031813","Župa sv. Fuske","Sufinanciranje remonta zvona na župnoj crkvi u Linardićima",null,11000,11000,null,11000]
["73790034362","Župa sv. Jakova Kornić","Sufinanciranje uređenja župne crkve i župne kuće u Korniću",null,50000,50000,null,50000]
["95123620882","Biskupija Krk, Župa sv. Mihovila","Sufinanciranje sustava za grijanje u župnoj crkvi u Vrhu",null,38079.379999999997,38079.379999999997,null,38079.379999999997]
["90806197014","Klub za športski ribolov na moru \"Big OM\" Omišalj","Natjecanje Big game fishing",null,null,null,2000,2000]
[99420440852,"Udruga ljudi i običaji","Suf. Festivala MIK",null,null,null,37000,37000]
[10912945962,"Pazinski kolegij- klasična gimnazija",null,null,null,null,1000,1000]
[null,"Lara Nenadić","2.mjesto na Nacionalnom kadetskom prvenstvu (Veslački klub Glagoljaš)",null,null,null,3000,3000]
[null,"Paola Jurešić","Nagrada sportašu",null,null,null,500,{"$f":"F116+G116","v":500}]
[null,"UKUPNO:",null,null,{"$f":"SUM(E4:E116)","v":3274293.2399999998},{"$f":"SUM(F4:F116)","v":2897193.2399999998},{"$f":"SUM(G4:G116)","v":416322.91},{"$f":"G117+F117","v":3313516.15}]
[]
["*Ukupno knjiženo na kontima 381 tekuće donacije 3.242.600,22  i 382 kapitalne donacije 518.704,38 od čega je  kn plaćeno neprofitnim udrugama 3.313.516,15 kn a 447.788,45 kn dobavljačima prema izdanom računu,ustanovama i sl. prema odluci Gradonačelnika,sporazumu,ugovoru (nije na popisu)"]
[]
[]
[null,null,"REKAPITULACIJA"]
[]
[null,null,"NAZIV PROGRAMA","POZICIJA PRORAČUNA 2016","PLANIRANO PREMA PROGRAMU","OSTVARENO PREMA PROGRAMU *","UKUPNO OSTVAREN PROGRAM","RAZLIKA (ISPLATE IZ REZERVE PROGRAMA)"]
[null,null,"Program za socijalno-humanitarne udruge, društva i ustanove Grada Krka",1218,{"$f":"SUM(E4:E20)","v":270000},{"$f":"SUM(F4:F20)","v":257700},{"$f":"SUM(H4:H20)","v":284600},{"$f":"G125-F125","v":26900}]
[null,null,"Program sporta",1217,{"$f":"SUM(E21:E41)","v":1020000},{"$f":"SUM(F21:F41)","v":1018000},{"$f":"SUM(H21:H41)","v":1098097.5},{"$f":"G126-F126","v":80097.5}]
[null,null,"Program javnih potreba u kulturi",1260,{"$f":"SUM(E42:E59)","v":333000},{"$f":"SUM(F42:F59)","v":329200},{"$f":"SUM(H42:H59)","v":415800},86600]
[null,null,"Program javnih potreba u tehničkoj kulturi",1222,{"$f":"SUM(E60:E69)","v":153000},{"$f":"SUM(F60:F69)","v":153000},{"$f":"SUM(H60:H69)","v":172000},19000]
[null,null,"Program javnih potreba u poljoprivredi",2115,{"$f":"SUM(E70:E75)","v":105000},{"$f":"SUM(F70:F75)","v":105000},{"$f":"SUM(H70:H75)","v":164177.18},59177.179999999993]
[null,null,"Odluka o sredstvima za političke stranke Grada Krka",2104,{"$f":"SUM(E76:E84)","v":107800},{"$f":"SUM(F76:F84)","v":107800},{"$f":"SUM(H76:H84)","v":107800},0]
[null,null,"Građanske inicijative",1223,{"$f":"SUM(E85:E86)","v":40000},{"$f":"SUM(F85:F86)","v":22000},{"$f":"SUM(H85:H86)","v":22000},0]
[null,null,"* U koloni ostvareno prema Programu prikazana su sredstva doznačena udrugama za one udruge koje imaju zaključene ugovore"]
[null,null,"Rashodi koji su realizirani iz rezerve Programa a nisu isplaćeni temeljem ugovora nisu uključeni"]
[]
[null,null,"Ostalo - izvan programa",null,{"$f":"SUM(E87:E116)","v":1245493.2399999998},{"$f":"SUM(F87:F116)","v":904493.24},{"$f":"SUM(H87:H116)","v":1049041.47}]
[null,null,"Ukupno:",null,{"$f":"SUM(E125:E135)","v":3274293.2399999998},{"$f":"SUM(F125:F135)","v":2897193.24},{"$f":"SUM(G125:G135)","v":3313516.1500000004}]

{"sheet":"Popis donacija do 31.12.2020","index":4,"n_rows":180,"n_cols":10,"rows_kept":180,"cut":false,"hidden":false,"merged":[[183,1,183,8],[179,3,179,8],[149,1,149,7],[116,1,116,2],[95,2,95,8],[174,3,174,8]]}
[null,"GRAD  KRK  - IZVJEŠTAJ O  DONACIJAMA IZ PRORAČUNA OD 01.01. - 31.12.2020."]
[null,null,"1.     a)  UDRUGAMA PREMA PROGRAMIMA JAVNIH POTREBA I  POLITIČKIM STRANKAMA  "]
[null,1,2,3,4,5,6,7,9]
["Red.br.","OIB primatelja donacije","Naziv primatelja donacije /šifra PP","Naziv programa ili pojedinačne donacije","Pozicija","Planirano prema programu javnih potreba iz kolone 3.-ugovor","Ostvarena donacija po programu iz kolone 3.","Ostale donacije prema odluci Gradonačelnika","Ukupno donacija udruzi 2020                           9=6+7"]
["1.","13644894582","Udruga HVIDRA, otok Krk","Program za socijalno-humanitarne udruge, društva i ustanove Grada Krka",1218,12500,12500,null,{"$f":"G5+H5","v":12500}]
["2.","04341489477","Udruga antifašističkih boraca Otoka Krka","Program za socijalno-humanitarne udruge, društva i ustanove Grada Krka",1218,20000,20000,null,{"$f":"G6+H6","v":20000}]
["3.","87108816444","Udruga umirovljenika Grada Krka","Program za socijalno-humanitarne udruge, društva i ustanove Grada Krka",1218,25000,25000,null,25000]
["4.","67753818672","Udruga umirovljenika Poljica - Šotovento","Program za socijalno-humanitarne udruge, društva i ustanove Grada Krka",1218,25000,9820,null,9820]
["5.","71954510830","Udruga osoba s mišićnom distrofijom PGŽ","Program za socijalno-humanitarne udruge, društva i ustanove Grada Krka",1218,1000,1000,null,1000]
["6.","33480204219","Caritas Biskupije Krk","Program za socijalno-humanitarne udruge, društva i ustanove Grada Krka",1218,5000,5000,3000,8000,"iznos od 3.000,00 knjižen na poziciju 1269"]
["7.","76455622311","Udruga invalida kvarnerskih otoka","Program za socijalno-humanitarne udruge, društva i ustanove Grada Krka",1218,4500,4497.63,null,4497.63]
["8.","60978973343","Zajednica Talijana Krk","Program za socijalno-humanitarne udruge, društva i ustanove Grada Krka",1218,3500,3500,null,3500]
["9.","80713734687","Udruga slijepih Primorsko-goranske županije","Program za socijalno-humanitarne udruge, društva i ustanove Grada Krka",1218,1000,1000,null,{"$f":"G13+H13","v":1000}]
["10.","17299379476","Udruga gluhih i nagluhih","Program za socijalno-humanitarne udruge, društva i ustanove Grada Krka",1218,1000,1000,null,1000]
["11.","61916000339","Udruga za zaštitu životinja \"Felix\"","Program za socijalno-humanitarne udruge, društva i ustanove Grada Krka",1218,2000,0,null,0]
["12.","08002590MB","Udruga veterana Domovinskog rata","Program za socijalno-humanitarne udruge, društva i ustanove Grada Krka",1218,12500,12414.67,null,12414.67]
["13.","26889141768","Klub liječenih ovisnika otoka Krka \"Gromača\"","Program za socijalno-humanitarne udruge, društva i ustanove Grada Krka",1218,10000,10000,null,10000]
["14.","11268954050","Pokret za život","Program za socijalno-humanitarne udruge, društva i ustanove Grada Krka ",1218,1500,1500,null,1500]
["15.","9165632246","Društvo multiple skleroze PGŽ","Program za socijalno-humanitarne udruge, društva i ustanove Grada Krka ",1218,1500,1500,null,1500]
["16.","95951192179","Udruga za terapijsko jahanje \"Moj prijatelj\" Njivice","Program za socijalno-humanitarne udruge, društva i ustanove Grada Krka",1218,1500,1500,null,1500]
["17.","48646835982","Udruga žena operiranih dojki \"Nada\" Rijeka","Program za socijalno-humanitarne udruge, društva i ustanove Grada Krka",1218,1000,1000,null,1000]
["18.","12632735476","Udruga specijalne policije iz Domovinskog rata \"Ajkula\"","Program za socijalno-humanitarne udruge, društva i ustanove Grada Krka",1218,5000,5000,null,{"$f":"G22+H22","v":5000}]
["19.","36007579737","Udruga GAIA NOVA","Program za socijalno-humanitarne udruge, društva i ustanove Grada Krka",1218,5000,5000,4500,{"$f":"G23+H23","v":9500},"iznos od 4.500,00 kn knjižen na poziciju 1269"]
["20.","73460568220","Udruga Albanske nacionalne manjine","Program za socijalno-humanitarne udruge, društva i ustanove Grada Krka",1218,2500,2496.62,null,2496.62]
["21.","05478483564","Jedriličarski klub \"Plav\"","Program sporta",1217,45000,45000,null,45000]
["22.","36756573211","Judo klub Krk","Program sporta",1217,32500,32500,null,32500]
["23.","03533054678","Nogometni klub Krk","Program sporta",1217,195000,194999.64,null,194999.64]
["24.","86232456623","Boćarski klub Krk","Program sporta",1217,22500,22500,null,22500]
["25.","45131977269","Košarkaški klub Krk","Program sporta",1217,80000,75313.95,13140,88453.95,"iznos od 13.140,00 knjižen na poziciju 2108.1"]
["26.","08000507MB","Boćarski klub Brzac","Program sporta",1217,25000,24587.82,350,24937.82,"iznos od 350,00 kn knjižen na poziciju 2108.1"]
["27.","96996266947","Atletski klub","Program sporta",1217,20000,20000,2990,22990,"iznos od 2.990,00 knjižen na poziciju 2108.1"]
["28.","26187625353","ŠRD \"Glavoč\" Linardići","Program sporta",1217,3000,3000,null,3000]
["29.","98470469935","Š.R.D. \"Čavlena\", Poljica","Program sporta",1217,3000,3000,null,3000]
["30.","3010199207","Š.R.D. Lovrata","Program sporta",1217,20000,20000,1350,21350,"iznos od 1.350,00 knjižen na poziciju 2108.1"]
["31.","21584915136","Š.R.D. \"Poteljan\" - Brzac","Program sporta",1217,3000,3000,null,3000]
["32.","34791402277","U.Š.R. \"Pepice\", Krk","Program sporta",1217,4000,4000,null,4000]
["33.","22800276467","Karate klub \"Croatia\"","Program sporta",1217,26328.97,26328.97,15000,41328.97,"iznos od 15.000,00 knjižena na poziciju 2108.1"]
["34.","62150220652","Streličarski klub Maura Kal, Krk","Program sporta",1217,17500,17500,675,18175,"iznos od 675,00 knjižen na poziciju 2108.1"]
["35.","12308261479","Wakeboard klub , Krk","Program sporta",1217,7500,7500,null,7500]
["36.","51467769782","STK Malinska-Dubašnica, Malinska","Program sporta",1217,27500,27353.7,7400,34753.699999999997,"iznos od 2.400,00 knjižen na poziciju 2108.1"]
["37.","92942299310","Veslački klub \"Glagoljaš\" - Omišalj","Program sporta",1217,7500,7500,null,7500]
["38.","43783677249","Nogometni klub \"Vihor\" Baška","Program sporta",1217,5000,5000,null,5000]
["39.","91785441723","KŠR \"Sv. Fuska\" Pinezići - Skrpčići","Program sporta",1217,3000,3000,null,3000]
["40.","30112731589","Streljački klub Bodulka Krk, Krk","Program sporta",1217,2500,2453.69,null,2453.69]
["41.","40266992361","Škola sporta \"Zvrk Krk\" Krk","Program sporta",1217,2500,2500,null,2500]
["42.","89847320849","DSR \"Centar aktivnosti Krk\"","Program sporta",1217,6500,6500,null,6500]
["43.","63365024765","Golf klub Krk","Program sporta",1217,2500,2500,null,2500]
["44.",43320920196,"D.P.Z. zbor \"Mići boduli\"","Program javnih potreba u kulturi",1260,30000,30000,null,30000]
["45.","75741049188","Gradska  glazba Krk, Krk","Program javnih potreba u kulturi",1260,37500,37419.71,null,37419.71]
["46.","50403072234","Gradski pjevački zbor - Krk","Program javnih potreba u kulturi",1260,5000,4749.1499999999996,null,4749.1499999999996]
["47.","46553375003","Katedra čakavskog sabora - Kornić","Program javnih potreba u kulturi",1260,12500,12437.36,null,12437.36]
["48.","02948679852","K.U.D. Vrh","Program javnih potreba u kulturi",1260,10000,10000,null,10000]
["49.","49047582634","Kulturno društvo Kornić","Program javnih potreba u kulturi",1260,10000,3000,null,3000]
["50.","17069296058","Folklorno društvo Poljica","Program javnih potreba u kulturi",1260,10000,5393.36,null,5393.36]
["51.","86856424924","Multimedijalna udruga Krčka beseda Krk","Program javnih potreba u kulturi",1260,5000,5000,null,5000]
["52.","96538191387","Ženska klapa \"Vejanke\"","Program javnih potreba u kulturi",1260,5000,5000,null,5000]
["53.","66601934965","Plesna skupina Monfrina - Krk","Program javnih potreba u kulturi",1260,2500,2500,null,2500]
["54.","04345582762","Udruga sopaca otoka Krka","Program javnih potreba u kulturi",1260,3000,3000,null,3000]
["55.","12016859209","Udruga Knezovi krčki Frankopan","Program javnih potreba u kulturi",1260,22704.46,21389.55,null,21389.55]
["56.","08001469","Karnevalska udruga \"Povero Keko\"","Program javnih potreba u kulturi",1260,10000,10000,null,10000]
["57.","21349394661","Udruga Kreativni Krk","Program javnih potreba u kulturi",1260,80415.64,80415.64,30000,110415.64,"iznos od 25.000,00 knjižen na poziciju 2105, a iznos od 5.000,00 knjižen na poziciju 1221.5"]
["58.","45092136734","Povijesno društvo Otoka Krka","Program javnih potreba u kulturi",1260,2500,2500,null,2500]
["59.","01051197257","Dječja plesna skupina Povero Keko","Program javnih potreba u kulturi",1260,5000,5000,null,5000]
["60.","10569544707","Udruga Ćuk","Program javnih potreba u kulturi",1260,20000,1530.28,null,1530.28]
["61.","24375160926","Mažoretkinje otoka Krka","Program javnih potreba u kulturi",1260,10000,10000,null,10000]
["62.","23708870261","Šahovski klub - Krk","Program javnih potreba u tehničkoj kulturi",1222,23500,23500,null,23500]
["63.","60024777398","Klub informatičara otoka Krka - KIOK","Program javnih potreba u tehničkoj kulturi",1222,12500,11170.25,null,11170.25]
["64.","92972369942","Planinarsko društvo Obzova Njivice","Program javnih potreba u tehničkoj kulturi",1222,5000,4675,null,4675]
["65.","72556929505","Foto klub Krk","Program javnih potreba u tehničkoj kulturi",1222,5000,5000,4000,9000,"iznos od 4.000,00 kn knjižen na poziciju 1269"]
["66.","34876825002","Zrakoplovni klub otoka Krka","Program javnih potreba u tehničkoj kulturi",1222,2500,1860,null,1860]
["67.","57026135581","Filatelističko društvo Krk","Program javnih potreba u tehničkoj kulturi",1222,5000,5000,null,5000]
["68.","17305749299","Auto klub Krk","Program javnih potreba u tehničkoj kulturi",1222,25000,25000,null,25000]
["69.","91063173829","Moto klub Krk - Fluminense riders MC","Program javnih potreba u tehničkoj kulturi",1222,1500,1500,null,1500]
["70.","67421370315","Lovačko društvo \"Kamenjarka\"","Program javnih potreba u poljoprivredi",2115,5000,5000,null,5000]
["71.","89342153826","Lovačko društvo \"Šljuka\" - Krk","Program javnih potreba u poljoprivredi",2115,5000,5000,null,5000]
["72.","35628238969","Lovačko društvo \"Zec\" Malinska","Program javnih potreba u poljoprivredi",2115,5000,5000,null,{"$f":"G76+H76","v":5000}]
["73.","50206656419","Udruga maslinara \"Drobnica\" - Krk","Program javnih potreba u poljoprivredi",2115,19700,19700,null,{"$f":"G77+H77","v":19700}]
["74.","82907571905","Udruga vinara otoka Krka \"Bukaleta\"","Program javnih potreba u poljoprivredi",2115,5000,5000,null,5000]
["75.","56390519158","Udruga proizvođača meda od kadulje","Program javnih potreba u poljoprivredi",2115,1000,1000,null,1000]
["76.","76318722399","Udruga pčelara \"Kadulja\" otoka Krka","Program javnih potreba u poljoprivredi",2115,5200,5200,null,5200]
["77.","76514851143","Udruga \"Progres\"","Program javnih potreba u poljoprivredi",2115,15000,15000,null,15000]
["78.","46319922976","Udruga sirara Krk","Program javnih potreba u poljoprivredi",2115,10000,10000,null,10000]
["79.","04150008463","Hrvatska demokratska zajednica -HDZ","Odluka o raspoređivanju sredstava za financiranje političkih stranaka i kandidacijskih lista grupe birača zastupljenih u Gradskom vijeću Grada Krka (“SN PGŽ“, broj 19/17) i Odluka o smanjenju sredstava za financiranje političkih stranaka i kandidacijskih lista grupe birača zastupljenih  u Gradskom vijeću Grada Krka u 2020. godini (“SN PGŽ“, broj 25/20),",2104,7000,7000,null,7000]
["80.","02010978731","Socijal -demokratska partija SDP","Odluka o raspoređivanju sredstava za financiranje političkih stranaka i kandidacijskih lista grupe birača zastupljenih u Gradskom vijeću Grada Krka (“SN PGŽ“, broj 19/17) i Odluka o smanjenju sredstava za financiranje političkih stranaka i kandidacijskih lista grupe birača zastupljenih  u Gradskom vijeću Grada Krka u 2020. godini (“SN PGŽ“, broj 25/20),",2104,7350,7350,null,7350]
["81.","97439500228","Kandidacijska lista grupe birača - David Mrakovčić - dana 27.11. 2020 sredstva vraćena u Proračun Grada Krka","Odluka o raspoređivanju sredstava za financiranje političkih stranaka i kandidacijskih lista grupe birača zastupljenih u Gradskom vijeću Grada Krka (“SN PGŽ“, broj 19/17) i Odluka o smanjenju sredstava za financiranje političkih stranaka i kandidacijskih lista grupe birača zastupljenih  u Gradskom vijeću Grada Krka u 2020. godini (“SN PGŽ“, broj 25/20),",2104,3500,3500,null,3500]
[null,"11773779232","Kandidacijska lista grupe birača - Darko Purić","Odluka o raspoređivanju sredstava za financiranje političkih stranaka i kandidacijskih lista grupe birača zastupljenih u Gradskom vijeću Grada Krka (“SN PGŽ“, broj 19/17) i Odluka o smanjenju sredstava za financiranje političkih stranaka i kandidacijskih lista grupe birača zastupljenih  u Gradskom vijeću Grada Krka u 2020. godini (“SN PGŽ“, broj 25/20),",2104,3500,3500,null,3500]
["82.","26665813859","HSP- Hrvatska stranka prava","Odluka o raspoređivanju sredstava za financiranje političkih stranaka i kandidacijskih lista grupe birača zastupljenih u Gradskom vijeću Grada Krka (“SN PGŽ“, broj 19/17) i Odluka o smanjenju sredstava za financiranje političkih stranaka i kandidacijskih lista grupe birača zastupljenih  u Gradskom vijeću Grada Krka u 2020. godini (“SN PGŽ“, broj 25/20),",2104,3500,3500,null,3500]
["83.","41495097026","Primorsko goranski savez - PGS","Odluka o raspoređivanju sredstava za financiranje političkih stranaka i kandidacijskih lista grupe birača zastupljenih u Gradskom vijeću Grada Krka (“SN PGŽ“, broj 19/17) i Odluka o smanjenju sredstava za financiranje političkih stranaka i kandidacijskih lista grupe birača zastupljenih  u Gradskom vijeću Grada Krka u 2020. godini (“SN PGŽ“, broj 25/20),",2104,21350,21350,null,21350]
["84.","39757690131","Unija Kvarner","Odluka o raspoređivanju sredstava za financiranje političkih stranaka i kandidacijskih lista grupe birača zastupljenih u Gradskom vijeću Grada Krka (“SN PGŽ“, broj 19/17) i Odluka o smanjenju sredstava za financiranje političkih stranaka i kandidacijskih lista grupe birača zastupljenih  u Gradskom vijeću Grada Krka u 2020. godini (“SN PGŽ“, broj 25/20),",2104,3500,3500,null,3500]
["85.","39821442260","Kandidacijska lista grupe birača - Goran Marević","Odluka o raspoređivanju sredstava za financiranje političkih stranaka i kandidacijskih lista grupe birača zastupljenih u Gradskom vijeću Grada Krka (“SN PGŽ“, broj 19/17) i Odluka o smanjenju sredstava za financiranje političkih stranaka i kandidacijskih lista grupe birača zastupljenih  u Gradskom vijeću Grada Krka u 2020. godini (“SN PGŽ“, broj 25/20),",2104,3500,3500,null,3500]
["86.","05433916893","Udruga \"Moj otok\"","Građanske inicijative",1223,10000,10000,5000,15000,"iznos od 5.000,00 kn knjižen na poziciju 1269"]
["87.","64682437286","Udruga Rukotvorine Krk","Građanske inicijative",1223,5500,4750,4666.43,9416.43,"iznos od 4.666,43 knjižen na poziciju 1269"]
["88.","27997238954","Udruga žene za otok","Građanske inicijative",1223,2500,2500,null,2500]
["89.","71387140029","Društvo prijatelja Hajduka otok Krk","Građanske inicijative",1223,1500,1500,null,1500]
["90.","49497758348","Udruga \"Plavo bijeli otok\"","Građanske inicijative",1223,2500,2500,5000,7500,"iznos od 5.000,00 knjižen na poziciju 1269"]
[null,null,"1. b - POTPORE MALIH VRIJEDNOSTI  I  ISPLATE NEPROFITNIM ORGANIZACIJAMA"]
["91.",33806153509,"Udruga \"Hrvatski otočni proizvod\"","Ugovor o dodjeli financijskih potpora malih vrijednosti",1269,5000,5000,null,{"$f":"G97+H97","v":5000}]
["92.",61350693967,"Ženski odbojkaški klub Krk","Ugovor o dodjeli financijskih potpora malih vrijednosti",1269,1785,1785,null,{"$f":"G98+H98","v":1785}]
["93.","29763120474","Vijeće Srpske nacionalne manjine grada Krka","Odluka o načinu financiranja te određivanju naknade troškova i nagrade za rad članovima vijeća nacionalnih manjina (SN PGŽ br. 33/19) i Odluka o smanjenju naknade troškova i nagrade za rad članovima vijeća nacionalnih manjina Grada Krka u 2020. godini (SN PGŽ br. 25/20)","2101.3",17565,17565,1339.64,{"$f":"G99+H99","v":18904.64}]
["94.","52251744471","Srednja škola Hrvatski kralj Zvonimir Krk","Financijska pomoć za održavanje maturalne zabave",2105,null,null,2000,2000]
["95.","77600514446","Lag - \"Kvarnerski otoci\""," LAG Kvarnerski otoci za 2020. godinu, ",2121,null,null,12562,12562]
["96.","60334254350","Područna vatrogasna zajednica otoka Krka-za DVD Krk","Sporazum o financiranju vatrogastva, program posebnih mjera zaštite od požara",1228,460000,438664.18,15000,{"$f":"G102+H102","v":453664.18},"iznos od 15.000,00 knjižena na poziciju 1228.1"]
["97.","38812088413","Turistička zajednica otoka Krka","Financiranje rada \"hladnog pogona\" Turističke zajednice otoka Krka i zajedničkih programa","1221.2",97067.32,97067.32,9243.84,106311.16]
["98.","31501920607","Gradsko društvo Crvenog križa Krk","Proračun grada za 2020- prema Zakonu o Hrvatskom Crvenom križu",1219,120000,120000,18675,138675,"iznos od 18.675,00 knjižen na poziciju 1219.1"]
["99.",93890925326,"Udruga Hrvatskih lječnika dragovoljaca 1990. - 1991.","Financijska potpora za tiskanje monografije \"Hrvatski sanitet ličke bojišnice\"",1220,null,null,4000,4000]
["100.","89919564697","Županijska lučka Uprava Krk","Sufinanciranje radova na sanaciji podmorskog i nadmorskog dijela istočne obalne konstrukcije Ribarskog gata u luci Krk","3272.1",968827.6,968827.6,null,968827.6]
["101.",83149865195,"Lovačko društvo \"Orebica\"","Praćenje i izlov čaglja i divlje svinje kao alohtone divljači na otoku Krku, Sufinanciranje nabave termovizijske kamere za lov čaglja","3241.1",33642.86,33642.86,8934,42576.86]
["102.",2164099630,"Hrvatsko književno društvo","Financijska potpora za izdavanje zbirke poezije \"U potrazi za nirvanom\"",1220,null,null,2000,{"$f":"G108+H108","v":2000}]
["103.",72527253659,"Hrvatski Crveni križ","Pomoć uslijed potresa za Sisačko - moslovačku županiju","2108.1",null,null,50000,{"$f":"G109+H109","v":50000}]
["104.",75782933075,"Udruga Termen Malinska","Eko akcija čišćenja krčkog podmorja 2020",1269,null,null,5000,5000]
["105.",12027549767,"Udruga \"Tragom hrvatske baštine\"","Sponzorstvo izložbe \"Tragom hrvatske baštine\"","2108.1",null,null,3000,3000]
["106.",null,"Biskupski ordinarijat Kotor","Financijska potpora za bistu vikara Kotorske biskupije don Ante Belana","2108.1",null,null,2000,2000]
["107.",null,"UKUPNO 1 b)",null,null,{"$f":"SUM(F97:F112)","v":1703887.78},{"$f":"SUM(G97:G112)","v":1682551.9600000002},133754.47999999998,1816306.4400000002]
[]
["108.",null,"UKUPNO *: a+b",null,null,{"$f":"SUM(F5:F112)","v":2913436.8499999996},{"$f":"SUM(G5:G112)","v":2834708.9499999997},{"$f":"SUM(H5:H112)","v":230825.91},{"$f":"H115+G115","v":3065534.86}]
[]
[null,"2.  OSTALO"]
[null,"OIB ","Naziv pravnog subjekta ","Opis uplate","Pozicija",null,null,"Ostalo  prema odluci Gradonačelnika","Ukupno"]
["109.",32289496287,"Arvalis j.d.o.o.","Krčki val",1220,null,null,11000,{"$f":"G119+H119","v":11000}]
["110.",45212948769,"Naklada Kvarner d.o.o.","Knjiga: Organizacija parkiranja u urbanim područjima",1220,null,null,1999.99,{"$f":"G120+H120","v":1999.99}]
["111.",19924269151,"Srđan j.d.o.o.","Fotomonografija Ljepote otoka Krka",1220,null,null,8999.5499999999993,8999.5499999999993]
["112.",62702092724,"Glosa d.o.o.","Krčki kalendar 2021",1220,null,null,7000,7000]
["113.",52410327915,"Laval d.o.o.","Pano 3D - 5 kom, za izložbu K.O.Z.M.O.G.O.N.I.J.E","2108.1",null,null,1481.25,1481.25]
["114.",40081859293,"Iglu sport d.o.o.","Oprema za penjalište u Baški","2108.1",null,null,2000,2000]
["115.",50522457221,"Nird d.o.o.","Igračke za djecu povodom sv. Nikole",1227,null,null,59924.85,{"$f":"G125+H125","v":59924.85}]
["116.",21580435987,"AMD PROMET d.o.o.","Igračke za djecu povodom sv. Nikole",1227,null,null,24691.13,24691.13]
["117.",99503692062,"Ugostiteljski obrt Maritim","Potpisivanje Povelje o prijateljstvu i suradnji sa gradom Vukovarom (prigodni ručak i noćenja)",2105,null,null,3250,3250]
["118.",22639946935,"Hoteli Krk d.o.o.","Prigodni ručak - delegacija grada Vukovara",2105,null,null,3488,3488]
["119.",99503692062,"Ugostiteljski obrt Maritim"," Okrijepa povodom primopredaje vatrogasnog vozila JVP Krk",2105,null,null,9055,9055]
["120.",83741593151,"Krčke vile d.o.o.","Catering povodom Božićnog prijema 19.12.2019.",2105,null,null,13261,13261]
["121.",58321014885,"Mateo d.o.o.","Vino  -  zdravica gradonačelnika 31.12.2019.",2105,null,null,1300,1300]
["122.",66548420466,"Trgovina Krk d.d.","Bomboni za djecu - povodom Dana ružičastih majica, Poklon bonovi i bonbonijere kao prigodni poklon nagrađenim stolnotenisačicama, Ugovor o jamstvu plaćanja kupljenih proizvoda - primanje za spasioce",2105,null,null,4018.82,4018.82]
["123.",79367743100,"Obrt Marija, vl. Boris Svitek","Troškovi Udruge umirovljenika Poljica Šotovento",2105,null,null,3000,3000]
["124.",3589417293,"Mirnovec pirotehnika d.o.o.","Usluga organizacije i izvođenja vatrometa 25.02.2020. - Krčki karneval",2105,null,null,20750,20750]
["125.",92285520719,"Convivium d.o.o.","Organizacija manifestacije povodom \"Dana žena\" u Krku 7.3.2020.",2105,null,null,31250,31250]
["126.",44110106406,"Novi list d.d.","Pokroviteljstvo priloga Maturanti i prvašići 2019./2020.",2105,null,null,2500,2500]
["127.",86401316610,"MAMUT, obrt za usluge, vl. Izidor Vasilić","Najam razglasne opreme - Karnevalska povorka Rijeka",2105,null,null,2100,2100]
["128.",58514309799,"Autotaksi Mile, obrt za usluge, vl. Mile Gušić","Financiranje prijevoza nogometaša NK Krk na turnir u Međugorje",2105,null,null,5000,5000]
["129.",9072502343,"GabiFlores d.o.o.","Ruže za dan žena, Buketi - prigodni piklon nagrađenim sportašicama, Cvijeće povodom Dana zahvanosti, Svijeće povodom Dana sjećanja na Vukovar",2105,null,null,6910,6910]
["130.",34245378800,"Obrt Gromača, vl. Emil Braut","Prijevoz maškarane skupine Povero Keko",2105,null,null,7500,7500]
["131.",33519855166,"Turistička naklada d.o.o.","Slikovnica \"Hrvatska za djecu\" - Akcija darujmo prvašićima",2105,null,null,2437.6999999999998,2437.6999999999998]
["132.",21723473245,"OPG Gršković Jasminka","Poklon paket - klub  100 darivatelja krvi GDCK",2105,null,null,280,280]
["133.",78947734649,"Obrt za dnevnu skrb djece \"Čarobna šuma\"","Sufinanciranje troškova boravka djece",1216,null,null,13148.15,13148.15]
["134.",61775421116,"Bubamara, obrt, vl. Nathalie Žic","Sufinanciranje troškova boravka djece",1216,null,null,53055.72,53055.72]
["135.",18452601525,"Dječji vrtić Katarina Frankopan","Sufinanciranje troškova boravka djece",1216,null,null,14831,14831]
["136.",43930583296,"Dječji vrtić Sv. Mala Terezija","Sufinanciranje troškova boravka djece",1216,null,null,18975,18975]
["137.",null,"Stipendisti i sportaši grada Krka","Novčane nagrade (stipendije) i nagrade sportašima","1215.3",null,null,8100,8100]
[null,null,null,"UKUPNO:",null,{"$f":"SUM(F119:F147)","v":0},{"$f":"SUM(G119:G147)","v":0},341307.16000000003,341307.16000000003]
[]
[]
[]
[]
[null,null,null,"REKAPITULACIJA  "]
[null,null,null,"NAZIV PROGRAMA","POZICIJA PRORAČUNA 2020","PLANIRANO PREMA PROGRAMU","OSTVARENO PREMA PROGRAMU *","RAZLIKA (ISPLATE IZ REZERVE PROGRAMA I OSTALIH PRORAČUNSKIH POZICIJA)***","UKUPNO OSTVARENO - UDRUGE KOJE SU U PROGRAMIMA **"]
[null,null,null,"1.","2.","3.","4.","5.","6."]
[null,null,null,"1.     a)  UDRUGAMA PREMA PROGRAMIMA JAVNIH POTREBA I  POLITIČKIM STRANKAMA  "]
[null,null,null,"Program za socijalno-humanitarne udruge, društva i ustanove Grada Krka",1218,{"$f":"SUM(F5:F24)","v":141000},{"$f":"SUM(G5:G24)","v":123728.92},{"$f":"I157-G157","v":7500.0000000000146},{"$f":"SUM(I5:I24)","v":131228.92000000001}]
[null,null,null,"Program sporta",1217,{"$f":"SUM(F25:F47)","v":561328.97},{"$f":"SUM(G25:G47)","v":556037.7699999999},{"$f":"I158-G158","v":40905},{"$f":"SUM(I25:I47)","v":596942.7699999999}]
[null,null,null,"Program javnih potreba u kulturi",1260,{"$f":"SUM(F48:F65)","v":281120.09999999998},{"$f":"SUM(G48:G65)","v":249335.04999999996},30000.000000000029,{"$f":"SUM(I48:I65)","v":279335.05}]
[null,null,null,"Program javnih potreba u tehničkoj kulturi",1222,{"$f":"SUM(F66:F73)","v":80000},{"$f":"SUM(G66:G73)","v":77705.25},4000,{"$f":"SUM(I66:I73)","v":81705.25}]
[null,null,null,"Program javnih potreba u poljoprivredi",2115,{"$f":"SUM(F74:F82)","v":70900},{"$f":"SUM(G74:G82)","v":70900},0,{"$f":"SUM(I74:I82)","v":70900}]
[null,null,null,"Odluka o sredstvima za političke stranke Grada Krka",2104,{"$f":"SUM(F83:F90)","v":53200},{"$f":"SUM(G83:G90)","v":53200},0,{"$f":"SUM(I83:I90)","v":53200}]
[null,null,null,"Građanske inicijative",1223,{"$f":"SUM(F91:F95)","v":22000},{"$f":"SUM(G91:G95)","v":21250},14666.43,{"$f":"SUM(I91:I95)","v":35916.43}]
[null,null,null,"UKUPNO PROGRAMI JAVNIH POTREBA I POL STR.:",null,{"$f":"F157+F158+F159+F160+F161+F162+F163","v":1209549.0699999998},{"$f":"G157+G158+G159+G160+G161+G162+G163","v":1152156.9899999998},{"$f":"H157+H158+H159+H160+H161+H162+H163","v":97071.430000000051},{"$f":"I157+I158+I159+I160+I161+I162+I163","v":1249228.42}]
[]
[null,null,null,"           b)  ISPLATE DRUGIM  NEPROFITNIM ORG."]
[null,null,null,"Isplate drugim neprofitnim org, ustanovama, izvan programa jav.pot.",null,{"$f":"SUM(F97:F112)","v":1703887.78},{"$f":"SUM(G97:G112)","v":1682551.9600000002},{"$f":"SUM(H97:H112)","v":133754.47999999998},{"$f":"SUM(I97:I112)","v":1816306.4400000002}]
[]
[null,null,null,"  UKUPNO 1 a+ b ISPLATE UDRUGAMA I NEPROFITNIM ORG.",null,{"$f":"F164+F167","v":2913436.8499999996},{"$f":"G164+G167","v":2834708.95},230825.91000000003,3065534.8600000003]
[]
[null,null,null,"2. OSTALO"]
[null,null,null,"****Ostalo - izvan programa-manifestacije-pokroviteljstva-ugovori",null,{"$f":"F148","v":0},{"$f":"G148","v":0},{"$f":"H148","v":341307.16000000003},{"$f":"I148","v":341307.16000000003}]
[null,null,null,"SVEUKUPNO (1+2):",null,{"$f":"F169+F172","v":2913436.8499999996},{"$f":"G169+G172","v":2834708.95},{"$f":"H169+H172","v":572133.07000000007},{"$f":"I169+I172","v":3406842.0200000005}]
[]
[null,null,null,"*U koloni 4. Ostvareno prema Programu javnih potreba i za pol.stranke prikazana su sredstva doznačena udrugama prema programu javnih potreba i zaključenim ugovorima ili odluci (pol.str.)"]
[null,null,null,"** U koloni 5. Ukupno ostvareno - Udruge koje su u programima  prikazana su ukupno isplaćena sredstva udrugama    "]
[null,null,null,"*** U koloni 6. prikazane su isplate iz rezerve programa i ostalih proračunskih pozicija"]
[null,null,null,"**** U retku Ostalo  prikazana su sredstva isplaćena na temelju ugovora sklopljenih za posebne namjene odnosno zaključaka gradonačelnika"]
[]
[null,null,null,"Ukupno knjiženo na kontima 38 donacije u iznosu od  3.406.842,02 kn i to  konta 381 tekuće donacije 1.965.675,24 kn  i konta 382 kapitalne donacije 1.441.166,78 kn, od čega je u tablici pod 1. (a+b )ukupno  3.065.534,86 kn plaćeno  udrugama i političkim strankama i drugom neprofitnom sektoru, a u tablici pod b) OSTALO  341.307,16 kn plaćeno  prema izdanom računu (pokloni djeci za sv. Nikolu, sufinanciranje izdavaštva i boravka djece u vrtićima,  proslave i pokroviteljstva)  nagrade sportašima i sl. prema odluci Gradonačelnika, sporazumu, ugovoru "]